{"text_format":"1","workbook":"xlsx","n_sheets":4,"sheets":["Cerere de Finantare","Anexa 3","A8-Detalii privind terenul ","Asociati"],"not_rendered":{"charts":0,"images":1,"macros":1,"external_links":0,"defined_names":1,"comments":0,"pivot_tables":0},"unopened":[],"bounds":{"document_bytes":16777216,"sheet_cells":100000,"rows_first":2000,"rows_last":500,"rows_between":2000,"halvings":0,"cell_chars":16384,"cell_head_chars":4096},"cells_cut":0,"cells_raw":0,"read":"whole","date_system":"1900"}

{"sheet":"Cerere de Finantare","index":0,"n_rows":535,"n_cols":58,"rows_kept":535,"cut":false,"hidden":false,"merged":[[346,50,346,54],[346,55,346,60],[339,50,339,54],[339,55,339,60],[334,0,334,29],[334,30,334,34],[334,35,334,41],[334,42,334,49],[334,50,334,54],[334,55,334,60],[338,0,338,29],[338,30,338,34],[338,35,338,41],[338,42,338,49],[338,50,338,54],[338,55,338,60],[335,0,335,29],[335,30,335,34],[335,35,335,41],[335,42,335,49],[335,50,335,54],[335,55,335,60],[336,0,336,29],[336,30,336,34],[336,35,336,41],[503,62,503,70],[470,48,470,60],[471,48,471,60],[474,48,474,60],[468,48,469,60],[472,48,472,60],[473,48,473,60],[434,0,434,8],[435,0,435,8],[436,0,436,8],[437,0,437,8],[438,0,438,8],[439,0,439,8],[440,0,440,8],[441,0,441,8],[444,0,445,8],[480,0,480,60],[451,48,451,60],[452,48,452,60],[453,48,453,60],[454,48,454,60],[455,48,455,60],[456,48,456,60],[457,48,457,60],[458,48,458,60],[459,48,459,60],[460,48,460,60],[461,48,461,60],[462,48,462,60],[463,48,463,60],[464,48,464,60],[417,48,417,60],[418,48,418,60],[419,48,419,60],[421,48,421,60],[422,48,422,60],[423,48,423,60],[424,48,424,60],[425,48,425,60],[429,48,429,60],[430,48,430,60],[431,48,431,60],[465,48,465,60],[466,48,466,60],[467,48,467,60],[432,48,432,60],[426,48,427,60],[433,48,433,60],[434,48,434,60],[435,48,435,60],[436,48,436,60],[437,48,437,60],[438,48,438,60],[439,48,439,60],[440,48,440,60],[441,48,441,60],[446,48,446,60],[447,48,447,60],[448,48,448,60],[449,48,449,60],[391,48,391,60],[392,48,392,60],[393,48,393,60],[394,48,394,60],[395,48,395,60],[396,48,396,60],[397,48,397,60],[444,48,445,60],[450,48,450,60],[398,48,398,60],[400,48,400,60],[401,48,401,60],[402,48,402,60],[403,48,403,60],[404,48,404,60],[405,48,405,60],[406,48,406,60],[407,48,407,60],[409,48,409,60],[410,48,410,60],[411,48,411,60],[412,48,412,60],[413,48,413,60],[414,48,414,60],[415,48,415,60],[416,48,416,60],[374,48,374,60],[375,48,375,60],[376,48,376,60],[377,48,377,60],[378,48,378,60],[379,48,379,60],[380,48,380,60],[381,48,381,60],[382,48,382,60],[383,48,383,60],[384,48,384,60],[385,48,385,60],[386,48,386,60],[387,48,387,60],[388,48,388,60],[389,48,389,60],[390,48,390,60],[357,48,357,60],[358,48,358,60],[359,48,359,60],[360,48,360,60],[361,48,361,60],[362,48,362,60],[363,48,363,60],[364,48,364,60],[365,48,365,60],[366,48,366,60],[367,48,367,60],[368,48,368,60],[369,48,369,60],[370,48,370,60],[371,48,371,60],[372,48,372,60],[373,48,373,60],[457,38,457,47],[458,38,458,47],[444,38,445,47],[459,38,459,47],[460,38,460,47],[461,38,461,47],[462,38,462,47],[463,38,463,47],[464,38,464,47],[465,38,465,47],[466,38,466,47],[467,38,467,47],[470,38,470,47],[471,38,471,47],[474,38,474,47],[468,38,469,47],[437,38,437,47],[438,38,438,47],[439,38,439,47],[440,38,440,47],[441,38,441,47],[429,38,432,47],[446,38,446,47],[447,38,447,47],[448,38,448,47],[449,38,449,47],[450,38,450,47],[451,38,451,47],[452,38,452,47],[453,38,453,47],[454,38,454,47],[455,38,455,47],[456,38,456,47],[375,38,375,47],[376,38,376,47],[377,38,377,47],[378,38,378,47],[379,38,379,47],[380,38,380,47],[416,38,416,47],[417,38,417,47],[418,38,418,47],[419,38,419,47],[424,38,424,47],[412,38,415,47],[425,38,425,47],[433,38,433,47],[434,38,434,47],[435,38,435,47],[436,38,436,47],[459,30,459,37],[460,30,460,37],[461,30,461,37],[462,30,462,37],[463,30,463,37],[464,30,464,37],[465,30,465,37],[466,30,466,37],[467,30,467,37],[470,30,470,37],[471,30,471,37],[474,30,474,37],[468,30,469,37],[357,38,357,47],[358,38,358,47],[359,38,359,47],[360,38,360,47],[361,38,361,47],[362,38,362,47],[363,38,363,47],[364,38,364,47],[365,38,365,47],[366,38,366,47],[367,38,367,47],[368,38,368,47],[369,38,369,47],[370,38,370,47],[371,38,371,47],[372,38,372,47],[373,38,373,47],[374,38,374,47],[438,30,438,37],[439,30,439,37],[440,30,440,37],[441,30,441,37],[446,30,446,37],[447,30,447,37],[448,30,448,37],[449,30,449,37],[450,30,450,37],[451,30,451,37],[452,30,452,37],[453,30,453,37],[454,30,454,37],[455,30,455,37],[456,30,456,37],[457,30,457,37],[458,30,458,37],[418,30,418,37],[419,30,419,37],[421,30,421,37],[422,30,422,37],[423,30,423,37],[424,30,424,37],[425,30,425,37],[429,30,429,37],[430,30,430,37],[431,30,431,37],[426,30,427,37],[432,30,432,37],[433,30,433,37],[434,30,434,37],[435,30,435,37],[436,30,436,37],[437,30,437,37],[400,30,400,37],[401,30,401,37],[402,30,402,37],[403,30,403,37],[404,30,404,37],[405,30,405,37],[406,30,406,37],[407,30,407,37],[409,30,409,37],[410,30,410,37],[411,30,411,37],[412,30,412,37],[413,30,413,37],[414,30,414,37],[415,30,415,37],[416,30,416,37],[417,30,417,37],[382,30,382,37],[383,30,383,37],[384,30,384,37],[385,30,385,37],[386,30,386,37],[387,30,387,37],[388,30,388,37],[389,30,389,37],[390,30,390,37],[391,30,391,37],[392,30,392,37],[393,30,393,37],[394,30,394,37],[395,30,395,37],[396,30,396,37],[397,30,397,37],[398,30,398,37],[469,9,469,29],[470,9,470,29],[471,9,471,29],[474,9,474,29],[472,9,472,29],[473,9,473,29],[357,30,357,37],[358,30,358,37],[359,30,359,37],[360,30,360,37],[361,30,361,37],[362,30,362,37],[363,30,363,37],[364,30,364,37],[365,30,365,37],[366,30,366,37],[367,30,367,37],[368,30,368,37],[369,30,369,37],[370,30,370,37],[371,30,371,37],[372,30,372,37],[373,30,373,37],[374,30,374,37],[375,30,375,37],[376,30,376,37],[377,30,377,37],[378,30,378,37],[379,30,379,37],[380,30,380,37],[381,30,381,37],[452,9,452,29],[453,9,453,29],[454,9,454,29],[455,9,455,29],[456,9,456,29],[457,9,457,29],[458,9,458,29],[459,9,459,29],[460,9,460,29],[461,9,461,29],[462,9,462,29],[463,9,463,29],[464,9,464,29],[465,9,465,29],[466,9,466,29],[467,9,467,29],[468,9,468,29],[432,9,432,29],[433,9,433,29],[434,9,434,29],[435,9,435,29],[436,9,436,29],[437,9,437,29],[438,9,438,29],[439,9,439,29],[440,9,440,29],[426,9,427,29],[441,9,441,29],[446,9,446,29],[447,9,447,29],[448,9,448,29],[449,9,449,29],[450,9,450,29],[451,9,451,29],[411,9,411,29],[412,9,412,29],[413,9,413,29],[414,9,414,29],[415,9,415,29],[416,9,416,29],[417,9,417,29],[418,9,418,29],[419,9,419,29],[421,9,421,29],[422,9,422,29],[423,9,423,29],[424,9,424,29],[425,9,425,29],[429,9,429,29],[430,9,430,29],[431,9,431,29],[397,9,397,29],[398,9,398,29],[400,9,400,29],[401,9,401,29],[402,9,402,29],[403,9,403,29],[404,9,404,29],[405,9,405,29],[406,9,406,29],[407,9,407,29],[409,9,409,29],[410,9,410,29],[387,9,387,29],[388,9,388,29],[389,9,389,29],[390,9,390,29],[391,9,391,29],[392,9,392,29],[393,9,393,29],[467,0,467,8],[470,0,470,8],[471,0,471,8],[474,0,474,8],[468,0,469,8],[357,9,357,29],[358,9,358,29],[359,9,359,29],[360,9,360,29],[361,9,361,29],[362,9,362,29],[363,9,363,29],[364,9,364,29],[365,9,365,29],[366,9,366,29],[367,9,367,29],[368,9,368,29],[369,9,369,29],[370,9,370,29],[371,9,371,29],[372,9,372,29],[373,9,373,29],[374,9,374,29],[375,9,375,29],[376,9,376,29],[377,9,377,29],[378,9,378,29],[379,9,379,29],[380,9,380,29],[395,9,395,29],[396,9,396,29],[454,0,454,8],[455,0,455,8],[456,0,456,8],[457,0,457,8],[458,0,458,8],[459,0,459,8],[460,0,460,8],[461,0,461,8],[462,0,462,8],[463,0,463,8],[425,0,425,8],[426,0,427,8],[428,0,432,8],[433,0,433,8],[464,0,464,8],[465,0,465,8],[466,0,466,8],[376,0,376,8],[377,0,377,8],[378,0,378,8],[379,0,379,8],[380,0,380,8],[381,0,389,8],[390,0,398,8],[399,0,407,8],[408,0,411,8],[412,0,415,8],[416,0,416,8],[417,0,417,8],[418,0,418,8],[419,0,419,8],[420,0,423,8],[452,0,452,8],[453,0,453,8],[525,0,525,49],[525,50,525,60],[526,0,526,49],[526,50,526,60],[527,17,527,49],[527,50,527,60],[530,17,530,49],[533,1,533,36],[534,1,534,60],[531,0,531,60],[529,17,529,49],[529,50,529,60],[530,50,530,60],[359,0,359,8],[360,0,360,8],[361,0,361,8],[362,0,362,8],[363,0,363,8],[364,0,364,8],[365,0,365,8],[366,0,366,8],[367,0,367,8],[368,0,368,8],[369,0,369,8],[370,0,370,8],[371,0,371,8],[372,0,372,8],[373,0,373,8],[374,0,374,8],[451,0,451,8],[520,30,521,40],[520,41,520,49],[357,0,357,8],[358,0,358,8],[528,17,528,49],[528,50,528,60],[507,3,507,60],[508,3,508,60],[509,3,509,60],[514,0,514,60],[515,0,515,60],[516,0,516,60],[517,0,517,16],[517,17,517,49],[517,50,517,60],[518,0,522,16],[518,17,519,29],[518,50,518,60],[519,50,519,60],[522,17,522,49],[522,50,522,60],[507,0,507,2],[508,0,508,2],[518,41,518,49],[523,0,524,16],[523,17,523,49],[523,50,523,60],[524,17,524,49],[524,50,524,60],[521,50,521,60],[518,30,519,40],[521,41,521,49],[499,3,499,60],[500,3,500,60],[490,0,490,2],[491,0,491,2],[492,0,492,2],[493,0,493,2],[494,0,494,2],[495,0,495,2],[496,0,496,2],[497,0,497,2],[498,0,498,2],[501,3,501,60],[502,3,502,60],[503,3,503,60],[504,3,504,60],[505,3,505,60],[506,3,506,60],[495,3,495,60],[496,3,496,60],[497,3,497,60],[498,3,498,60],[505,0,505,2],[506,0,506,2],[519,41,519,49],[520,50,520,60],[499,0,499,2],[500,0,500,2],[501,0,501,2],[509,0,509,2],[494,3,494,60],[280,14,280,18],[277,14,277,18],[275,1,275,13],[276,1,276,13],[277,1,277,13],[7,36,8,60],[13,36,21,60],[212,3,212,16],[212,17,212,49],[210,2,210,14],[235,1,235,37],[215,24,215,49],[218,4,218,15],[218,18,218,20],[266,0,266,60],[230,1,230,13],[230,20,230,32],[267,2,267,60],[268,2,268,60],[271,14,271,18],[272,1,272,13],[239,42,239,58],[243,38,243,50],[245,1,245,23],[274,19,274,37],[274,38,274,43],[274,44,274,52],[222,1,223,40],[239,1,239,19],[239,22,239,39],[240,1,240,9],[240,12,240,27],[276,57,276,59],[277,19,277,37],[277,38,277,43],[277,44,277,52],[274,53,274,56],[274,57,274,59],[271,19,271,37],[272,19,272,37],[271,38,271,43],[272,38,272,43],[271,44,271,52],[271,1,271,13],[271,53,271,56],[271,57,271,59],[273,19,273,37],[273,38,273,43],[272,44,272,52],[273,44,273,52],[273,53,273,56],[273,57,273,59],[272,14,272,18],[273,1,273,13],[273,14,273,18],[274,1,274,13],[276,19,276,37],[278,1,278,13],[279,1,279,13],[280,1,280,13],[275,14,275,18],[219,4,219,6],[219,7,219,9],[219,10,219,15],[219,18,220,20],[260,0,260,60],[237,1,237,12],[237,13,237,39],[238,1,238,19],[238,22,238,39],[238,42,238,58],[253,2,253,56],[254,2,254,56],[219,21,220,26],[219,28,220,35],[241,1,241,9],[241,12,241,27],[243,20,243,32],[240,30,240,33],[240,36,240,44],[240,48,240,51],[278,14,278,18],[279,14,279,18],[219,51,220,58],[250,29,250,59],[251,29,251,59],[277,57,277,59],[227,42,227,58],[228,1,228,9],[294,42,294,49],[292,30,292,34],[241,48,241,51],[241,54,241,58],[287,30,287,60],[289,0,290,54],[289,55,289,60],[290,55,290,60],[291,0,291,60],[274,14,274,18],[240,54,240,58],[241,30,241,33],[241,36,241,45],[242,38,242,50],[243,1,243,13],[89,1,93,13],[81,1,85,13],[164,1,164,41],[204,7,204,9],[214,3,214,10],[214,24,214,49],[215,3,215,16],[218,21,218,26],[218,28,218,35],[218,37,218,48],[218,51,218,58],[220,4,220,6],[220,7,220,9],[220,10,220,15],[276,38,276,43],[276,44,276,52],[276,53,276,56],[203,51,204,58],[204,4,204,6],[256,2,256,27],[256,31,256,56],[257,2,257,27],[257,31,257,56],[233,1,233,23],[219,37,220,48],[231,38,231,50],[248,0,248,60],[250,2,250,27],[251,2,251,27],[231,1,231,13],[231,20,231,32],[356,30,356,37],[356,38,356,47],[356,48,356,60],[355,0,355,8],[355,9,355,29],[356,0,356,8],[356,9,356,29],[276,14,276,18],[285,0,285,29],[286,0,286,29],[285,30,286,60],[288,0,288,29],[293,0,293,29],[294,0,294,29],[294,30,294,34],[294,35,294,41],[292,42,292,49],[292,50,292,54],[292,55,292,60],[292,35,292,41],[272,53,272,56],[281,3,281,52],[282,3,282,52],[283,3,283,52],[169,1,169,10],[170,1,170,10],[169,12,169,21],[170,12,170,21],[180,4,180,13],[180,16,180,23],[180,26,180,34],[179,47,181,57],[180,36,180,46],[186,0,186,60],[187,1,187,32],[174,1,174,58],[175,1,175,58],[177,3,178,13],[177,14,178,24],[177,25,178,35],[177,36,178,46],[177,47,177,57],[178,47,178,57],[169,23,169,35],[170,23,170,35],[170,37,170,59],[169,37,169,59],[184,2,184,59],[171,1,171,13],[172,1,172,13],[98,5,98,16],[152,2,152,14],[152,19,152,39],[152,43,152,58],[154,40,154,58],[147,0,147,60],[151,43,151,58],[158,17,158,30],[158,1,158,16],[148,0,148,60],[149,1,149,18],[150,1,151,15],[150,19,150,39],[151,19,151,39],[150,43,150,58],[156,1,156,29],[156,32,156,33],[156,34,156,35],[156,36,156,37],[156,38,156,39],[156,41,156,42],[156,43,156,44],[156,45,156,46],[156,47,156,48],[156,50,156,51],[156,52,156,53],[156,54,156,55],[156,56,156,57],[127,5,127,57],[128,2,132,58],[142,43,142,58],[143,43,143,58],[83,50,83,58],[95,1,95,22],[91,27,91,37],[91,39,91,48],[91,50,91,58],[91,15,91,25],[73,1,77,13],[67,39,67,48],[59,15,59,25],[59,27,59,37],[59,39,59,48],[59,50,59,58],[75,15,75,25],[75,27,75,37],[75,39,75,48],[75,50,75,58],[67,50,67,58],[65,1,69,13],[57,1,61,13],[67,15,67,25],[67,27,67,37],[83,15,83,25],[83,27,83,37],[83,39,83,48],[97,5,97,16],[134,2,134,58],[139,23,139,29],[138,32,138,40],[18,0,18,7],[15,30,15,34],[16,30,16,34],[17,30,17,34],[14,6,14,8],[15,6,15,8],[16,6,16,8],[14,9,14,11],[14,12,14,14],[15,12,15,14],[14,27,14,28],[15,27,15,28],[14,24,14,26],[15,24,15,26],[16,12,16,14],[15,9,15,11],[18,9,18,20],[15,20,15,23],[16,20,16,23],[17,20,17,23],[14,15,14,18],[15,15,15,18],[14,30,14,34],[14,20,14,23],[135,1,135,14],[136,1,136,14],[135,16,135,34],[136,16,136,34],[0,6,0,60],[1,6,1,60],[7,0,7,34],[8,0,8,34],[10,7,10,34],[10,0,10,5],[6,36,6,60],[3,42,3,60],[12,0,12,5],[12,7,13,7],[12,9,13,9],[12,10,13,10],[12,12,13,12],[5,0,6,34],[5,36,5,60],[13,0,13,5],[12,21,13,21],[10,36,10,60],[11,36,12,60],[12,13,13,13],[12,15,13,15],[12,16,13,16],[12,17,13,17],[12,18,13,18],[12,20,13,20],[12,30,13,30],[12,31,13,31],[12,32,13,32],[12,33,13,33],[12,34,13,34],[12,22,13,22],[12,23,13,23],[12,25,13,25],[12,27,13,27],[12,28,13,28],[35,1,35,22],[28,1,28,15],[22,0,22,16],[23,0,23,60],[19,0,19,21],[20,0,20,7],[21,0,21,21],[30,1,30,16],[55,50,55,58],[49,27,49,40],[49,41,49,59],[47,2,47,19],[48,0,48,15],[49,0,49,12],[49,13,49,25],[55,1,55,13],[55,15,55,25],[55,27,55,37],[55,39,55,48],[29,1,29,59],[31,1,34,59],[36,1,45,59],[28,48,28,59],[26,10,26,40],[51,6,51,21],[51,26,51,41],[51,49,51,59],[53,6,53,25],[53,30,53,33],[300,55,300,60],[297,0,297,29],[297,30,297,34],[297,35,297,41],[297,42,297,49],[297,50,297,54],[297,55,297,60],[298,0,298,29],[298,30,298,34],[298,35,298,41],[298,42,298,49],[298,50,298,54],[298,55,298,60],[295,0,295,29],[295,30,295,34],[295,35,295,41],[295,42,295,49],[295,50,295,54],[295,55,295,60],[296,0,296,29],[296,30,296,34],[296,35,296,41],[296,42,296,49],[296,50,296,54],[296,55,296,60],[300,35,300,41],[300,42,300,49],[300,50,300,54],[294,50,294,54],[294,55,294,60],[292,0,292,29],[303,0,303,29],[303,30,303,34],[303,35,303,41],[303,42,303,49],[303,50,303,54],[303,55,303,60],[293,30,293,49],[293,50,293,60],[304,0,304,29],[301,0,301,29],[301,30,301,34],[301,35,301,41],[301,42,301,49],[301,50,301,54],[301,55,301,60],[302,0,302,29],[302,30,302,34],[302,35,302,41],[302,42,302,49],[302,50,302,54],[302,55,302,60],[299,0,299,29],[299,30,299,34],[299,35,299,41],[299,42,299,49],[299,50,299,54],[299,55,299,60],[300,0,300,29],[300,30,300,34],[351,0,351,29],[314,0,314,29],[315,0,315,29],[316,0,316,29],[317,0,317,29],[318,0,318,29],[319,0,319,29],[322,0,322,29],[323,0,323,29],[331,0,331,29],[305,0,305,29],[306,0,306,29],[307,0,307,29],[308,0,308,29],[309,0,309,29],[310,0,310,29],[311,0,311,29],[312,0,312,29],[313,0,313,29],[320,0,320,29],[327,0,327,29],[328,0,328,29],[333,0,333,29],[324,0,324,29],[337,0,337,29],[341,0,341,29],[342,0,342,29],[339,0,339,29],[346,0,346,29],[304,30,304,34],[304,35,304,41],[304,42,304,49],[304,50,304,54],[304,55,304,60],[305,30,305,34],[305,35,305,41],[305,42,305,49],[305,50,305,54],[305,55,305,60],[306,30,306,34],[306,35,306,41],[306,42,306,49],[306,50,306,54],[306,55,306,60],[307,30,307,34],[307,35,307,41],[307,42,307,49],[307,50,307,54],[307,55,307,60],[310,30,310,34],[310,35,310,41]],"merged_total":1433,"flags":["merged_cut"]}
[null,null,null,null,null,null,"MINISTERUL AGRICULTURII ŞI DEZVOLTĂRII RURALE"]
[null,null,null,null,null,null,"ASOCIAȚIA INTERCOMUNITARĂ ”ȚARA ZARANDULUI” LEADER GAL"]
[null,null,null,null,null,null,null,null,null,null,null,null,null,null,null,null,null,null,null,null,null,null,null,null,null,null,null,null,null,null,null,null,null,null,null,null,null,null,null,null,null,null,"Vers. I, Ianuarie 2021 "]
[null,null,null,null,null,null,null,null,null,null,null,null,null,null,null,null,null,null,null,null,null,null,null,null,null,null,null,null,null,null,null,null,null,null,null,null,null,null,null,null,null,null,"SECŢIUNE GENERALĂ"]
[]
["DATE DE ÎNREGISTRARE",null,null,null,null,null,null,null,null,null,null,null,null,null,null,null,null,null,null,null,null,null,null,null,null,null,null,null,null,null,null,null,null,null,null,null,"NUME ŞI PRENUME DIRECTOR GENERAL"]
[null,null,null,null,null,null,null,null,null,null,null,null,null,null,null,null,null,null,null,null,null,null,null,null,null,null,null,null,null,null,null,null,null,null,null,null,"ADJUNCT CRFIR"]
["Se completează de către Agenția pentru Finanțarea Investițiilor Rurale -Centrul"]
["Regional- Programul FEADR 2014-2020"]
[]
["OJFIR",null,null,null,null,null,null,null,null,null,null,null,null,null,null,null,null,null,null,null,null,null,null,null,null,null,null,null,null,null,null,null,null,null,null,null,"Semnătura Director General Adjunct CRFIR"]
[null,null,null,null,null,null,null,null,null,null,null,null,null,null,null,null,null,null,null,null,null,null,null,null,null,null,null,null,null,null,null,null,null,null,null,null,"Ştampila CRFIR"]
["Număr "]
["înregistrare"]
[]
[]
[]
[]
["Data Înregistrării"]
["Numele şi prenumele persoanei care înregistrează"]
["Semnătura:"]
["Data primirii cererii de finanţare la contractare:"]
["Se completează de către solicitant"]
["A PREZENTARE GENERALĂ"]
[]
[null,"A1 Sub-măsura   19.2 "]
[null,null,null,null,null,null,null,null,null,null,"Măsura 2.2  / 2B Ferme mici și mijlocii"]
[]
[null,"A2 Denumire solicitant:"]
[]
[null,"A3 Titlu proiect:"]
[]
[]
[]
[]
[null,"A4 Descrierea succintă a proiectului:"]
[]
[]
[]
[]
[]
[]
[]
[]
[]
[]
[]
[null,null,"A5 Amplasarea proiectului:"]
[]
["Regiunea de dezvoltare:",null,null,null,null,null,null,null,null,null,null,null,null,null,null,null,null,null,null,null,null,null,null,null,null,null,null,"Judeţ/Municipiul Bucureşti:"]
[]
["Localitate",null,null,null,null,null,null,null,null,null,null,null,null,null,null,null,null,null,null,null,null,null,null,null,"Sat",null,null,null,null,null,null,null,null,null,null,null,null,null,null,null,null,null,"Cod Postal"]
[]
[null,"Strada",null,null,null,null,null,null,null,null,null,null,null,null,null,null,null,null,null,null,null,null,null,null,null,null,null,null,"Nr."]
[]
[null,"Obiectivele investiţiei",null,null,null,null,null,null,null,null,null,null,null,null,null,"Judeţ",null,null,null,null,null,null,null,null,null,null,null,"Comună",null,null,null,null,null,null,null,null,null,null,null,"Sat",null,null,null,null,null,null,null,null,null,null,"Sat"]
[]
[]
[]
[]
[]
[]
[]
[]
[]
[]
[]
[]
[]
[]
[]
[]
[]
[]
[]
[]
[]
[]
[]
[]
[]
[]
[]
[]
[]
[]
[]
[]
[]
[]
[]
[]
[]
[]
[]
[null,"A6 Detalii proiect"]
[null,null," - Sectorul exploatatie agricole:"]
[null,null,null,null,null,"Vegetal"]
[null,null,null,null,null,"Zootehnic"]
[null,null," - Sectorul obiectivului prevăzut în planul de afaceri:"]
[null,null,null,null,null,"Vegetal"]
[null,null,null,null,null,"Zootehnic"]
[]
[null,null," - Zona în care se află exploataţia:"]
[null,null,null,null,null,null,null,"zona normală;"]
[null,null,null,null,null,null,null,"zona montană;"]
[null,null,null,null,null,null,null,"zona cu constrângeri specifice;"]
[null,null,null,null,null,null,null,"zona cu constrângeri semnificative;"]
[]
[null,null," - Gradul de dotare al exploataţiei:"]
[null,null,null,null,null,null,null,"deţin baze de producţie specifice activităţii"]
[null,null,null,null,null,null,null,"nu deţin baze de producţie specifice activităţii"]
[null,null,null,null,null,null,null,null,null,null,"nu propun achizitii pentru realizarea bazei de producţie"]
[null,null,null,null,null,null,null,null,null,null,"propun achiziţii pentru realizarea bazei de producţie"]
[null,null," - Tipul producţiei:"]
[null,null,null,null,null,null,"Ecologică"]
[null,null,null,null,null,null,"Convenţională"]
[]
[null,"A7",null,null,null,"Declar pe propria răspundere că nu am accesat PNA 2014-2016"]
[null,null,null,null,null,"Declar pe proprie răspundere că nu voi accesa PNA 2017-2019 între momentul depunerii Cererii de Finanţare la PNDR 2014-2020 şi momentul acordării celei de-a doua tranşe de plată din PNDR 2014-2020;"]
[null,null,null,null,null,"Declar pe propria răspundere că am accesat PNA 2014-2016 şi am beneficiat de finanţare pentru următoarele achiziţii (pentru care nu voi solicita finanţare din PNDR 2014-2020 ):"]
["Anul accesării:",null,null,null,null,null,null,null,null," Produse Achiziţionaze prin program:"]
[]
[]
[]
[]
[]
[null,null,null,null,null,"Declar pe propria răspundere că nu voi solicita finanţare din PNDR 2014-2020 pentru următoarele achiziţii pe care intenţionez să le decontez prin accesarea PNA 2017-2019:"]
[]
[]
[]
[]
[]
[]
[null,null,"A8 DETALII PRIVIND TERENUL EXPLOATAŢIEI CARE STĂ LA BAZA CALCULULUI SO:"]
[null,"Judeţ",null,null,null,null,null,null,null,null,null,null,null,null,null,null,"Comună",null,null,null,null,null,null,null,null,null,null,null,null,null,null,null,null,null,null,null,"Sat"]
[]
[null,"Modalităţi deţinere"]
[null,null,null,"Moştenire / Donaţie",null,null,null,null,null,null,null,null,null,null,null,null,"Număr de ha",null,null,null,null,null,null,"Blocul fizic",null,null,null,null,null,null,null," ","Parcela",null,null,null,null,null,null,null,null,null,null,"Tarlaua"]
[null,null,null,"Achiziţie"]
[null,null,null,"Arendă / Concesiune/ Comodat / Închiriere/ Dare temporă în administrare sau folosinţă"]
[null,"Persoana care a dat moştenirea/donaţia/vânzător/arendator/concedent/comodant/locator / Persoana care a dat temporar în administrare sau folosință"]
[null,"Nume si prenume / Denumire",null,null,null,null,null,null,null,null,null,null,null,null,null,null,null,null,null,null,null,null,null,null,null,null,"Cod unic înregistrare/Cod numeric personal",null,null,null,null,null,null,null,null,null,null,null,null,null,null,null,null,"Act identitate (serie/număr) cetăţeni străini"]
[]
[]
[null,"Notă: Pentru a adăuga o noua inregistrare accesaţi foaia (sheet) corespunzătoare sau click pe butonul din dreapta",null,null,null,null,null,null,null,null,null,null,null,null,null,null,null,null,null,null,null,null,null,null,null,null,null,null,null,null,null,null,null,null,null,null,null,null,null," "]
[]
["B INFORMAŢII PRIVIND SOLICITANTUL"]
["B1 Descrierea solicitantului"]
[null,"B1.1 Informaţii privind solicitantul"]
[null,"Data înființării",null,null,null,null,null,null,null,null,null,null,null,null,null,null,null,null,null,"Cod Unic de Înregistrare și/sau Codul de",null,null,null,null,null,null,null,null,null,null,null,null,null,null,null,null,null,null,null,null,null,null,null,"Statut juridic al solicitantului"]
[null,null,null,null,null,null,null,null,null,null,null,null,null,null,null,null,null,null,null,"Înregistrare Fiscală"]
[]
[]
[null,"Număr de înregistrare în registrul comerțului"]
[]
[null,"Codul CAEN al activităţii/activităţilor finanţate prin proiect"]
[]
[null,"Codul unic de înregistrare APIA",null,null,null,null,null,null,null,null,null,null,null,null,null,null,null,null,null,null,null,null,null,null,null,null,null,null,null,null,null,null,null,null,null,null,"Anul atribuirii codului"]
[]
[null,"Cod Registru Naţional al Exploataţiilor ANSVSA",null,null,null,null,null,null,null,null,null,null,null,null,null,null,null,null,null,null,null,null,null,null,null,null,null,null,null,null,null,null,null,null,null,null,null,null,null,"Anul atribuirii codului"]
[]
[null,"Cod Registru Naţional al Exploataţiilor ANSVSA pentru Asociaţie/Cooperativa "]
[null,"(obligatoriu pentru fermele zootehnice)"]
[null,"B1.2 Sediul social / Domiciliul stabil al solicitantului / Reşedinţa din România"]
[null,"Judeţ",null,null,null,null,null,null,null,null,null,null,null,null,null,null,null,null,null,null,null,null,"Localitate",null,null,null,null,null,null,null,null,null,null,null,null,null,null,null,null,null,null,null,"Sat"]
[]
[null,"Cod Poştal",null,null,null,null,null,null,null,null,null,"Strada",null,null,null,null,null,null,null,null,null,null,null,null,null,null,null,null,null,null,null,null,null,null,"Nr.",null,null,null,null,"Bloc",null,null,null,null,"Scara",null,null,null,null,"Et. ",null,null,null,"Ap."]
[]
[null,"Telefon fix",null,null,null,null,null,null,null,null,null,null,"Telefon mobil",null,null,null,null,null,null,null,null,null,null,"Fax",null,null,null,null,null,null,null,null,null,null,null,null,null,"E-mail"]
[]
[null,"Telefon fix/ mobil",null,null,null,null,null,null,null,null,null,null,null,null,null,null,null,null,null,null,"Fax",null,null,null,null,null,null,null,null,null,null,null,null,null,null,null,"E-mail"]
[]
[]
[null,"B1.3 Numele şi prenumele reprezentantului legal şi funcţia acestuia în cadrul organizaţiei, precum şi"]
[null,"specimenul de semnatură:"]
[]
[null,null,null,"Numele",null,null,null,null,null,null,null,null,null,null,"Prenumele",null,null,null,null,null,null,null,null,null,null,"Funcţia",null,null,null,null,null,null,null,null,null,null,"Reprezentant legal",null,null,null,null,null,null,null,null,null,null,"Specimen de"]
[null,null,null,null,null,null,null,null,null,null,null,null,null,null,null,null,null,null,null,null,null,null,null,null,null,null,null,null,null,null,null,null,null,null,null,null,null,null,null,null,null,null,null,null,null,null,null,"semnătură"]
[]
[null,null,null,null,null,null,null,null,null,null,null,null,null,null,null,null,null,null,null,null,null,null,null,null,null,null,null,null,null,null,null,null,null,null,null,null,"LEGAL"]
[]
[null,"Nivel de studii şi denumirea instituţiei care a emis documentul"]
[]
[]
[]
["B2 Informaţii referitoare la reprezentantul legal de proiect"]
[null,"B2.1 Date de identitate ale reprezentantului legal de proiect"]
[]
[null,null,null,"Data naşterii",null,null,null,null,null,null,null,null,null,null,null,null,null,null,null,null,null,null,null,null,"Cod numeric personal"]
[]
[]
[]
[null,null,null,null,"Act de identitate",null,null,null,null,null,null,null,null,null,null,null,null,null,"Seria",null,null,"Nr.",null,null,null,null,null,null,"Eliberat la data de",null,null,null,null,null,null,null,null,"de:",null,null,null,null,null,null,null,null,null,null,null,null,null,"Valabil până la:"]
[null,null,null,null,"B.I.",null,null,"C.I.",null,null,"Paşaport"]
[]
[]
[null," Date de identitate ale soţului / soţiei:"]
[null,null,null,"Data naşterii",null,null,null,null,null,null,null,null,null,null,null,null,null,null,null,null,null,null,null,null,"Cod numeric personal"]
[]
[]
[]
[null,null,null,null,"Act de identitate",null,null,null,null,null,null,null,null,null,null,null,null,null,"Seria",null,null,"Nr.",null,null,null,null,null,null,"Eliberat la data de",null,null,null,null,null,null,null,null,"de:",null,null,null,null,null,null,null,null,null,null,null,null,null,"Valabil până la:"]
[null,null,null,null,"B.I.",null,null,"C.I.",null,null,"Paşaport"]
[]
[]
[]
[null,null,null,null,"Asociat unic",null,null,null,null,null,null,null,null,null,null,"Asociat majoritar",null,null,null,null,null,null,null,null,null,null,null,null,"Administrator"]
[]
[]
[null,null,"Asociaţi"]
[]
[null,null,null,"Nume si prenume asociat"]
[]
[null,null,null,"Data naşterii",null,null,null,null,null,null,null,null,null,null,null,null,null,null,null,null,null,null,null,null,"Cod numeric personal"]
[]
[]
[]
[null,null,null,null,"Act de identitate",null,null,null,null,null,null,null,null,null,null,null,null,null,"Seria",null,null,"Nr.",null,null,null,null,null,null,"Eliberat la data de",null,null,null,null,null,null,null,null,"de:",null,null,null,null,null,null,null,null,null,null,null,null,null,"Valabil până la:"]
[null,null,null,null,"B.I.",null,null,"C.I.",null,null,"Paşaport"]
[]
[]
[null,"Notă: Pentru a adăuga o noua inregistrare accesaţi foaia (sheet) corespunzătoare sau click pe butonul din dreapta"]
[]
[]
[null,"B2.2 Domiciliul stabil al reprezentantului legal de proiect"]
[null,"Judeţ",null,null,null,null,null,null,null,null,null,null,null,null,null,null,null,null,null,null,null,null,"Localitate",null,null,null,null,null,null,null,null,null,null,null,null,null,null,null,null,null,null,null,"Sat"]
[]
[null,"Cod Poştal",null,null,null,null,null,null,null,null,null,null,"Strada",null,null,null,null,null,null,null,null,null,null,null,null,null,null,null,null,null,"Nr.",null,null,null,null,null,"Bloc",null,null,null,null,null,null,null,null,null,null,null,"Scara",null,null,null,null,null,"Ap."]
[]
[null,"Telefon fix",null,null,null,null,null,null,null,null,null,null,null,null,null,null,null,null,null,null,"Telefon mobil",null,null,null,null,null,null,null,null,null,null,null,null,null,null,null,null,null,"Fax"]
[]
[null,"E-mail"]
[]
[]
[null,"B2.3 Domiciliul stabil al reprezentantului legal de proiect"]
[]
[null,"Denumire angajator:"]
[null,"Judeţ",null,null,null,null,null,null,null,null,null,null,null,null,null,null,null,null,null,null,null,null,"Localitate",null,null,null,null,null,null,null,null,null,null,null,null,null,null,null,null,null,null,null,"Sat"]
[]
[null,"Cod Poştal",null,null,null,null,null,null,null,null,null,null,"Strada",null,null,null,null,null,null,null,null,null,null,null,null,null,null,null,null,null,"Nr.",null,null,null,null,null,"Bloc",null,null,null,null,null,null,null,null,null,null,null,"Scara",null,null,null,null,null,"Ap."]
[]
[null,"Telefon fix",null,null,null,null,null,null,null,null,null,null,null,null,null,null,null,null,null,null,"Telefon mobil",null,null,null,null,null,null,null,null,null,null,null,null,null,null,null,null,null,"Fax"]
[]
[null,"E-mail"]
[]
[]
[]
["B3 Informaţii privind contul bancar pentru Proiectul F.E.A.D.R. MĂSURA 2.2"]
[]
[null,null,"B3.1 Denumirea Institutiei Financiar Bancară",null,null,null,null,null,null,null,null,null,null,null,null,null,null,null,null,null,null,null,null,null,null,null,null,null,null,"Denumirea Sucursalei/Filialei/Agenției instituției Financiar Bancare"]
[]
[]
[null,null,"B3.2 Adresa Sucursalei/Filialei/Agenției instituției Financiar-Bancare"]
[]
[]
[null,null,"B3.3 Cod-ul IBAN al contului Bancar",null,null,null,null,null,null,null,null,null,null,null,null,null,null,null,null,null,null,null,null,null,null,null,null,null,null,null,null,"B3.4 Titularul contului bancar"]
[]
[]
[]
["B4 Date privind consultantul"]
[]
[null,"Denumirea Consultantului"]
[]
[null,"Codul Unic de Înregistrare",null,null,null,null,null,null,null,null,null,null,null,null,null,null,null,null,null,null,null,null,null,null,null,null,null,null,null,"Nr. înregistrare ONRC"]
[]
["C FINANȚĂRI NERAMBURSABILE solicitate și /sau obținute"]
[null,null,"C. Solicitantul a mai obținut finanțări nerambursabile ? Detailați cu datele solicitate in tabelul de mai jos*"]
[]
[]
[]
[null,"DENUMIRE PROGRAM FINANȚARE",null,null,null,null,null,null,null,null,null,null,null,null,"Număr proiecte",null,null,null,null,"Titlul Proiectui / Codul contractului/ Deciziei de finanțare ***",null,null,null,null,null,null,null,null,null,null,null,null,null,null,null,null,null,null,"Data accesării/ finalizării",null,null,null,null,null,"Valoarea accesării\nsprijinului\n(EUR)",null,null,null,null,null,null,null,null,"DA",null,null,null,"NU"]
[null,"Program Naţional Apicol (PNA)",null,null,null,null,null,null,null,null,null,null,null,null,null,null,null,null,null,null,null,null,null,null,null,null,null,null,null,null,null,null,null,null,null,null,null,null,null,null,null,null,null,null,null,null,null,null,null,null,null,null,null,null,1]
[null,"Programul Naţional de Sprijin al României în sectorul vitivinicol (PNS)"]
[null,"FEADR **"]
[null,"Alte programe europene**"]
[null,"Alte programe europene**"]
[null,"Alte programe europene**"]
[null,"Alte programe internaționale**"]
[null,"Alte programe internaționale**"]
[null,"Alte programe internaționale**"]
[null,null,null,"* se completează indiferent dacă solicitantul a obţinut / nu a obţinut finanţări nerambursabile"]
[null,null,null,"** se completează de către solicitant cu denumirea programului"]
[null,null,null,"*** se completează în funcţie de tipul proiectului"]
[]
["MINISTERUL AGRICULTURII ŞI DEZVOLTĂRII RURALE",null,null,null,null,null,null,null,null,null,null,null,null,null,null,null,null,null,null,null,null,null,null,null,null,null,null,null,null,null,"SECTIUNE SPECIFICA MĂSURA 2.2"]
["ASOCIAȚIA INTERCOMUNITARĂ ”ȚARA ZARANDULUI” LEADER GAL"]
[]
[]
["D. LISTA DOCUMENTELOR ANEXATE PROIECTELOR AFERENTE MĂSURII 2.2 ",null,null,null,null,null,null,null,null,null,null,null,null,null,null,null,null,null,null,null,null,null,null,null,null,null,null,null,null,null,null,null,null,null,null,null,null,null,null,null,null,null,null,null,null,null,null,null,null,null,null,null,null,null,null,"OPIS"]
[null,null,null,null,null,null,null,null,null,null,null,null,null,null,null,null,null,null,null,null,null,null,null,null,null,null,null,null,null,null,null,null,null,null,null,null,null,null,null,null,null,null,null,null,null,null,null,null,null,null,null,null,null,null,null,"documente"]
["A se anexa documentele în ordinea de mai jos:"]
["Lista documente",null,null,null,null,null,null,null,null,null,null,null,null,null,null,null,null,null,null,null,null,null,null,null,null,null,null,null,null,null,"Obligatoriu pentru toate proiectele",null,null,null,null,"Obligatoriu, dacă proiectul impune",null,null,null,null,null,null,"PAGINA de   la - până la",null,null,null,null,null,null,null,"Obligatoriu pentru toate proiectele",null,null,null,null,"Obligatoriu, dacă proiectul impune"]
["Documente specifice etapei",null,null,null,null,null,null,null,null,null,null,null,null,null,null,null,null,null,null,null,null,null,null,null,null,null,null,null,null,null,"DEPUNERE",null,null,null,null,null,null,null,null,null,null,null,null,null,null,null,null,null,null,null,"CONTRACTARE"]
["1. Planul de afaceri pentru dezvoltarea exploataţiei (în original)"]
["2. Copiile documentelor de proprietate/ folosinţă pentru exploataţia agricolă \n \na) Pentru terenul agricol:\n• documentul care atestă dreptul de proprietate asupra terenului agricol conform prevederilor legislaţiei în vigoare (contract de vânzare - cumpărare autentificat de notar, act de donaţie autentificat de notar, hotarâre judecatorească definitivă şi irevocabilă cu punere în posesie, certificat de moştenitor unic autentificat de notar, precum şi alte documente care demonstrează terţilor dreptul de proprietate conform prevederilor legislaţiei în vigoare autentificate la notar),"]
["şi/sau\n• tabelul centralizator cu suprafeţele luate în arendă pe categorii de folosinţă şi perioade de arendare, emis de Primărie, semnat de persoanele autorizate conform prevederilor legislaţiei în vigoare (care să conţină sumarul contractelor de arendare valabile la data depunerii Cererii de Finanţare); In cazul exploataţiilor care presupun înfiinţarea si/sau reconversia plantaţiilor pomicole, documentele trebuie sa fie valabile cel putin 15 ani începând cu anul depunerii cererii de finanţare, cu excepţia pepinierelor, culturilor de căpşun, zmeur, mur, coacăz şi agriş, unde perioada minimă este de 10 ani. "]
["şi/sau\n• contractul de concesiune valabil la data depunerii Cererii de Finanţare însoţit de adresa emisă de concedent care conţine situaţia privind respectarea clauzelor contractuale, dacă este în graficul de realizare a investiţiilor prevăzute în contract şi alte clauze; In cazul exploataţiilor care presupun înfiinţarea si/sau reconversia plantaţiilor pomicole, documentele trebuie sa fie valabile cel putin 15 ani începând cu anul depunerii cererii de finanţare, cu excepţia pepinierelor, culturilor de căpşun, zmeur, mur, coacăz şi agriş, unde perioada minimă este de 10 ani. "]
["şi/sau\n• contractul de comodat/contractul de închiriere/ documentul potrivit căruia suprafața de teren a fost dată temporar în administrare/ folosință"]
["şi/sau\n• document notarial care atestă constituirea patrimoniului de afectaţiune"]
["şi/sau\n• documentele pentru terenul ce constituie vatra stupinei: acte de proprietate conform legislaţiei în vigoare, sau contract de concesiune/ contract de arendă/ contract de închiriere/ contract de comodat valabile la data depunerii Cererii de finanţare. Suprafaţa de teren eligibilă pentru vatra stupinei este de minim 5mp/stup şi 50 mp pentru fiecare pavilion apicol."]
["b) Pentru construcţii permanente, conform prevederilor Legii nr. 50/1991, cu modificările și completările ulterioare:\n• documentul care atestă dreptul real principal asupra construcţiei: drept de proprietate, uz, uzufruct, superficie, servitute, concesiune (dobândit prin act autentic notarial de ex.: contract de vânzare-cumpărare, de schimb, de donaţie, certificat de moştenitor, act administrativ de restituire, hotărâre judecătorească)."]
["c) Pentru construcţii provizorii, conform prevederilor Legii nr. 50/1991, cu modificările și completările ulterioare:\n• documentul care atestă dreptul real principal asupra construcției: drept de proprietate, uz, uzufruct, superficie, servitute (dobândit prin act autentic notarial de ex.: contract de vânzare-cumpărare, de schimb, de donație, certificat de moștenitor, act administrativ de restituire, hotărâre judecătorească, lege)"]
[" sau\n• documentul care atestă dreptul de creanţă asupra construcţiei dobândit prin: concesiune, comodat, locaţiune. În cazul prezentării contractului de comodat/locațiune pentru construcțiile cu caracter provizoriu, conform prevederilor Legii nr. 50/1991, cu modificările și completările ulterioare, solicitantul trebuie să atașeze și acordul expres al proprietarului de drept."]
["d) Pentru animale, păsări şi familii de albine:\n• PAŞAPORTUL emis de ANZ pentru ecvideele (cabalinele) cu rasă şi origine"]
["• documentul emis de forma asociativă apicolă privind înregistrarea stupilor şi stupinelor constând în numerele plăcuţelor de identificare pentru fiecare stup şi panourile de identificare a stupinelor în conformitate cu prevederile legislaţiei în vigoare, actualizat cu cel mult 30 de zile înaintea datei depunerii Cererii de finanţare"]
["• Pentru exploataţiile mixte şi zootehnice: Copia Registrului agricol emis de Primărie actualizată cu cel mult 30 de zile înaintea datei depunerii Cererii de finanţare, din care să rezulte dreptul de folosinţă (proprietate/arendă/concesiune) al terenului, dreptul de proprietate asupra animalelor (toate categoriile de animale domestice şi sălbatice aflate în captivitate în cadrul exploataţiei), cu ştampila primăriei şi menţiunea  \"Conform cu originalul\".  "]
["şi\n• Pentru exploataţiile vegetale: Copia Registrului Agricol emis de Primărie actualizată în anul depunerii Cererii de Finanţare, din care să rezulte dreptul de folosinţă (proprietate/arendă/concesiune) al terenului, dreptul de proprietate asupra animalelor (toate categoriile de animale domestice şi sălbatice aflate în captivitate în cadrul exploataţiei), cu ştampila primăriei şi menţiunea \"Conform cu originalul\"."]
["3. Copiile situaţiilor financiare pentru anii  “n” si “n-1”, unde “n” este anul anterior anului în care solicitantul depune Cererea de Finanţare, înregistrate la Administraţia Financiară:\na)Pentru societăţi comerciale: \n• Bilanţul (cod 10);"]
["• Contul de profit şi pierderi (cod 20);"]
["• Datele informative (cod 30);"]
["• Situaţia activelor imobilizate (cod 40)."]
["ŞI/SAU \n• Declaraţia de inactivitate (pentru societăţile înfiinţate în anii \"n\" şi/sau \"n-1\", care nu au avut activitate).\n \nSocietăţile comerciale înfiinţate în anul 2021 nu au obligaţia depunerii acestor documente."]
["b)Pentru persoane fizice autorizate, întreprinderi individuale şi întreprinderi familiale:\n• Declaraţia privind veniturile realizate (Formularul 200 - cod 14.13.01.13);"]
["ŞI/SAU \n• Declaraţia privind veniturile din activităţi agricole - impunere pe normele de venit (Formularul 221 - cod 14.13.01.13/9), în cazul solicitanţilor care în anii \"n\" şi \"n-1\" sunt autorizaţi conform OUG.44/2008, cu modificările şi completările ulterioare, care au optat pentru calcularea venitului net pe bază de norme de venit.\nSau\nDeclarația unică privind impozitul pe venit și contribuțiile sociale datorate de persoanele fizice. \nPersoanele fizice autorizate, întreprinderile individuale şi întreprinderile familiale înfiinţate în anul 2021 nu au obligaţia depunerii acestor documente."]
["4. Certificatul care să ateste lipsa datoriilor restante fiscale şi sociale emise de Direcţia Generală a Finanţelor Publice, iar în cazul în care solicitantul este proprietar asupra imobilelor, se va depune Certificat emis de Primăria de pe raza     cărora îşi au sediul social şi punctele de lucru."]
["5. Copia actului de identitate al reprezentantului legal de proiect (asociat unic/asociat majoritar/administrator)"]
["6. Hotarârea adunării generale a asociaţiilor(AGA) persoanei juridice, prin care se desemnează reprezentantul legal sau administratorul (Acţionar Majoritar 50%+1) care să reprezinte societatea în relaţia cu AFIR/GAL şi care exercită un control efectiv pe teren lung (de cel puţin 6 ani/8 ani în cazul sectorului pomicol) în ceea ce priveşte deciziile referitoare la gestionare, beneficii, riscuri financiare în cadrul exploataţiei respective"]
["7. Documentele care demonstrează gradul de rudenie între asociaţi / membrii familiei din cadrul microintreprinderii / întreprinderii mici (copiile actelor de identitate, alte documente relevante) "]
["8. •  documentul care atestă absolvirea învăţământului minim de 8 clase se ataşează în cazul în care solicitantul nu are studii superioare / postliceale/ liceale în domeniul agricol/ agro-alimentar/ veterinar/ economiei agrare;"]
["•  diploma de absolvire se ataşează în cazul studiilor superioare (diploma de doctor, diploma de disertatie, diploma de licenţă)"]
["• diploma de absolvire a studiilor postliceale (diploma/ certificatul de absolvire)/ liceale (diploma de bacalaureat) în domeniul agricol/ agro-alimentar/ veterinar/ economei agrare;"]
["• certificatul de calificare profesională se ataşează în cazul cursurilor de calificare/ recalificare în domeniul agricol/ agro-alimentar/ veterinar/ economiei agrare realizate de către furnizori de formare profesională a adulţilor autorizaţi pentru respectivul program de formare profesională (minim Nivelul I). De asemenea  sunt  acceptate şi certificatele de absolvire a cursurilor de calificare emise de ANCA în domeniul agricol, agro-alimentar, vetrerinar sau economie agrară."]
["• document de recunoaştere a competenţelor profesionale obţinute pe alte căi decât cele formale, care trebuie de asemenea să fie autorizat de Autoritatea Naţională pentru Calificări"]
["• certificatul de absolvire se ataşează în cazul cursurilor de perfecţionare/ specializare/ iniţiere în domeniul  agricol/ agro-alimentar/ veterinar/ economiei agrare realizate de către furnizori de formare profesională a adulţilor autorizaţi pentru respectivul program de formare profesională sau documentul echivalent acestuia; (sub numărul de ore aferent Nivelului I de calificare profesională)"]
["9. Cazierul judiciar, în original, al reprezentantului legal care să ateste lipsa înscrierilor care privesc sancţiuni penale în domeniul economico-financiar, valabil la data încheierii contractului - poate fi solicitat de către AFIR, în conformitate cu prevederile Legii nr.290/2004 privind cazierul judiciar, republicată, cu modificările şi completările ulterioare."]
["10. Copia/ copiile documentului/ documentelor care certifică utilizarea resurselor genetice autohtone\na) În cazul soiurilor de plante de cultură autohtone:\n·   factura fiscală de achiziție a seminței certificate  "]
["·   documentul oficial de certificare a lotului de sămânță cu mențiunea \"sămânţă admisă pentru însămânţare\"/ buletinul de analiză oficial cu mențiunea \"sămânţă admisă pentru însămânţare\"/ buletinul de analiză oficial cu mențiunea \"Necesar propriu\" şi \"Interzisă comercializarea\"/ documentul de calitate şi conformitate al furnizorului/ orice alt document echivalent documentelor menţionate emis într-un stat membru al Uniunii Europene sau într-o ţară terţă care are echivalenţă conform Deciziei Consiliului 2003/17/CE/ eticheta oficială. "]
["b) În cazul speciilor autohtone de animale\n - Certificatul de origine pentru animalele deţinute de solicitant emis de către Asociaţiile/Organizaţiile Crescătorilor de Animale acreditate pentru întocmirea şi menţinerea registrului genealogic din specia prevăzută în proiect, autorizată de ANZ"]
["11.  Copia contractului de colectare a gunoiului de grajd încheiat între solicitant şi deţinătorul platformei"]
["sau \n     Copia adeverinţei emisă de Primăria comunei pe teritoriul căreia se regăseşte platforma comunală, din care să rezulte faptul că aceasta va prelua gunoiul de grajd din exploataţia solicitantului"]
["12. Documentul emis de ANSVSA prin care se certifică înregistrarea exploataţiei ca fiind exploataţie comercială de tip A, conform prevederilor Ordinului nr.16/2010, cu modificările şi completările ulterioare."]
["13. Copiile documentelor emise de autoritățile de mediu, sanitar, sanitar-veterinar, dacă este cazul;"]
["14. Documentul emis de instituţia financiar-bancară în care să se menţioneze denumirea şi adresa instituţiei financiar-bancare, titularul contului, CUI-ul titularului şi codul IBAN al contului prin care se derulează proiectul FEADR."]
["15. Declarație pe propria răspundere privind locurile de muncă (Anexa 20)"]
["16. Extras din Registrul Exploatației emis de ANSVSA/DSVSA din care să rezulte: efectivul de animale deținut, al pasarilor si al familiilor de albine si data primei înscrieri a solicitantului în Registrul Exploatației, însoțit de formularul de mișcare ANSVSA/DSVSA (Anexa 4 din Normele sanitare veterinare ale Ordinului ANSVSA nr. 40/2010).[Dacă este cazul]"]
["17.Certificat constatator al întreprinderii emis de ONRC cu maxim 30 zile înainte de data depunerii proiectului și Certificatul de înregistrare eliberat de ONRC"]
["18. Codul unic de înregistrare APIA și/sau Cod  Registrul Național al Exploatațiilor  ANSVSA"]
["19. Copie print screen cerere de suprafață APIA 2020, însoțit de cererea pentru transfer de exploatație/schimbarea formei de organizare.[Dacă este cazul]"]
["20.Raportul asupra utilizării  programelor de finanțare nerambursabile"]
["21.Declarație raportare GAL (Anexa 27)"]
["22.Declarație privind crearea condițiilor artificiale (Anexa 28)"]
["23. Declaratie pe propria răspundere privind beneficierea de același tip de sprijin  în cadrul altei măsuri din PNDR (Anexa 22)"]
["24. Declaratie pe propria răspundere privind beneficierea de sprijin prin intermediul măsurilor 141, 411-141 din PNDR 2007-2013 (Anexa 23)"]
["25. Declaratie pe propria răspundere privind de sprijin prin intermediul măsurilor 112, 411-112 „Instalarea tinerilor fermieri”, din PNDR 2007-2013 (Anexa 24)"]
["26. Declaratie-privind-derularea unui proiect pe SM 4.1,4.1a,4.2,4.2a (Anexa 25)"]
["27. Declaratie pe propria răspundere soț/soție (Anexa 26)\n"]
["28. Declarație privind prelucrarea datelor cu caracter personal (Anexa 29)\n"]
["29. Alte documente justificative pe care solicitantul le consideră relevante pentru proiect (dacă este cazul)"]
[]
[]
[]
[]
["E. LISTA COEFICIENŢILOR DE CALCUL AI PRODUCŢIEI STANDARD PENTRU VEGETAL / ZOOTEHNIE 8)"]
["CALCULUL COEFICIENȚILOR DE PRODUCȚIE STANDARD PENTRU VEGETAL"]
["Coduri EUROSTAT",null,null,null,null,null,null,null,null,"Denumire culturi",null,null,null,null,null,null,null,null,null,null,null,null,null,null,null,null,null,null,null,null,"Suprafaţa       (ha)",null,null,null,null,null,null,null,"SO           euro/ha",null,null,null,null,null,null,null,null,null,"SO"]
[0,null,null,null,null,null,null,null,null,1,null,null,null,null,null,null,null,null,null,null,null,null,null,null,null,null,null,null,null,null,2,null,null,null,null,null,null,null,3,null,null,null,null,null,null,null,null,null,4]
["B_1_1_1",null,null,null,null,null,null,null,null,"Grâu comun",null,null,null,null,null,null,null,null,null,null,null,null,null,null,null,null,null,null,null,null,0,null,null,null,null,null,null,null,614.09,null,null,null,null,null,null,null,null,null,{"$f":"AE358*AM358","v":0}]
["B_1_1_2",null,null,null,null,null,null,null,null,"Grâu dur",null,null,null,null,null,null,null,null,null,null,null,null,null,null,null,null,null,null,null,null,0,null,null,null,null,null,null,null,432.81,null,null,null,null,null,null,null,null,null,{"$f":"AE359*AM359","v":0}]
["B_1_1_3",null,null,null,null,null,null,null,null,"Secară",null,null,null,null,null,null,null,null,null,null,null,null,null,null,null,null,null,null,null,null,0,null,null,null,null,null,null,null,354.27,null,null,null,null,null,null,null,null,null,0]
["B_1_1_4",null,null,null,null,null,null,null,null,"Orz+Orzoaică",null,null,null,null,null,null,null,null,null,null,null,null,null,null,null,null,null,null,null,null,0,null,null,null,null,null,null,null,529.44000000000005,null,null,null,null,null,null,null,null,null,0]
["B_1_1_5",null,null,null,null,null,null,null,null,"Ovăz",null,null,null,null,null,null,null,null,null,null,null,null,null,null,null,null,null,null,null,null,0,null,null,null,null,null,null,null,331.88,null,null,null,null,null,null,null,null,null,0]
["B_1_1_6",null,null,null,null,null,null,null,null,"Porumb boabe",null,null,null,null,null,null,null,null,null,null,null,null,null,null,null,null,null,null,null,null,0,null,null,null,null,null,null,null,641.79999999999995,null,null,null,null,null,null,null,null,null,0]
["B_1_1_7",null,null,null,null,null,null,null,null,"Orez",null,null,null,null,null,null,null,null,null,null,null,null,null,null,null,null,null,null,null,null,0,null,null,null,null,null,null,null,913.26,null,null,null,null,null,null,null,null,null,0]
["B_1_1_99",null,null,null,null,null,null,null,null,"Alte cereale(sorgul, triticale, meiul, hrişca, iarba cănăraşului, altele)",null,null,null,null,null,null,null,null,null,null,null,null,null,null,null,null,null,null,null,null,0,null,null,null,null,null,null,null,452.74,null,null,null,null,null,null,null,null,null,0]
["B_1_2_1",null,null,null,null,null,null,null,null,"Mazăre boabe, fasole boabe, lupin dulce",null,null,null,null,null,null,null,null,null,null,null,null,null,null,null,null,null,null,null,null,0,null,null,null,null,null,null,null,533.77,null,null,null,null,null,null,null,null,null,0]
["B_1_2_2",null,null,null,null,null,null,null,null,"Linte, bob, măzăriche, năut",null,null,null,null,null,null,null,null,null,null,null,null,null,null,null,null,null,null,null,null,0,null,null,null,null,null,null,null,454.79,null,null,null,null,null,null,null,null,null,0]
["B_1_3",null,null,null,null,null,null,null,null,"Cartofi (inclusiv cartofi noi, material săditor, cartof dulce destinat consumului uman)",null,null,null,null,null,null,null,null,null,null,null,null,null,null,null,null,null,null,null,null,0,null,null,null,null,null,null,null,3167.88,null,null,null,null,null,null,null,null,null,0]
["B_1_4",null,null,null,null,null,null,null,null,"Sfeclă de zahăr",null,null,null,null,null,null,null,null,null,null,null,null,null,null,null,null,null,null,null,null,0,null,null,null,null,null,null,null,1449.74,null,null,null,null,null,null,null,null,null,0]
["B_1_5",null,null,null,null,null,null,null,null,"Plante rădăcinoase pentru nutreţ (sfecla furajeră, alte plante furajere din familia brasicaceelor, morcovi furajeri, batata (cartof dulce), păstârnac, ignama, manioc)",null,null,null,null,null,null,null,null,null,null,null,null,null,null,null,null,null,null,null,null,0,null,null,null,null,null,null,null,1101.45,null,null,null,null,null,null,null,null,null,0]
["B_1_6_1",null,null,null,null,null,null,null,null,"Tutun",null,null,null,null,null,null,null,null,null,null,null,null,null,null,null,null,null,null,null,null,0,null,null,null,null,null,null,null,1696.83,null,null,null,null,null,null,null,null,null,0]
["B_1_6_2",null,null,null,null,null,null,null,null,"Hamei",null,null,null,null,null,null,null,null,null,null,null,null,null,null,null,null,null,null,null,null,0,null,null,null,null,null,null,null,4105.24,null,null,null,null,null,null,null,null,null,0]
["B_1_6_4",null,null,null,null,null,null,null,null,"Rapiţă",null,null,null,null,null,null,null,null,null,null,null,null,null,null,null,null,null,null,null,null,0,null,null,null,null,null,null,null,647.72,null,null,null,null,null,null,null,null,null,0]
["B_1_6_5",null,null,null,null,null,null,null,null,"Floarea soarelui",null,null,null,null,null,null,null,null,null,null,null,null,null,null,null,null,null,null,null,null,0,null,null,null,null,null,null,null,564.52,null,null,null,null,null,null,null,null,null,0]
["B_1_6_6",null,null,null,null,null,null,null,null,"Soia",null,null,null,null,null,null,null,null,null,null,null,null,null,null,null,null,null,null,null,null,0,null,null,null,null,null,null,null,611,null,null,null,null,null,null,null,null,null,0]
["B_1_6_7",null,null,null,null,null,null,null,null,"In pentru ulei",null,null,null,null,null,null,null,null,null,null,null,null,null,null,null,null,null,null,null,null,0,null,null,null,null,null,null,null,1563.56,null,null,null,null,null,null,null,null,null,0]
["B_1_6_8",null,null,null,null,null,null,null,null,"Alte plante pentru ulei (ricin, şofrănaş, susan, arahide, mac, muştar, alte culturi oleaginoase)",null,null,null,null,null,null,null,null,null,null,null,null,null,null,null,null,null,null,null,null,0,null,null,null,null,null,null,null,374,null,null,null,null,null,null,null,null,null,0]
["B_1_6_9",null,null,null,null,null,null,null,null,"In textil",null,null,null,null,null,null,null,null,null,null,null,null,null,null,null,null,null,null,null,null,0,null,null,null,null,null,null,null,307.17,null,null,null,null,null,null,null,null,null,0]
["B_1_6_10",null,null,null,null,null,null,null,null,"Cânepa",null,null,null,null,null,null,null,null,null,null,null,null,null,null,null,null,null,null,null,null,0,null,null,null,null,null,null,null,518.11,null,null,null,null,null,null,null,null,null,0]
["B_1_6_12",null,null,null,null,null,null,null,null,"Plante medicinale şi aromatice inclusiv ceaiul, cafeaua şi cicoarea pentru cafea: muşeţel, mătrăguna, menta, mac, angelica,chimen, genţiana, iasomia, lavanda, levănţica, origanul, şofranul, salvia,valeriana, gălbeneaua, etc.",null,null,null,null,null,null,null,null,null,null,null,null,null,null,null,null,null,null,null,null,0,null,null,null,null,null,null,null,937.85,null,null,null,null,null,null,null,null,null,0]
["B_1_6_99",null,null,null,null,null,null,null,null,"Alte plante industriale - cicoarea, trestia de zahăr, alte plante tehnice nemenţionate în altă parte, sorgul tehnic (pentru maturi)",null,null,null,null,null,null,null,null,null,null,null,null,null,null,null,null,null,null,null,null,0,null,null,null,null,null,null,null,717.56,null,null,null,null,null,null,null,null,null,0]
["B_1_7_1_1",null,null,null,null,null,null,null,null,"Legume proaspete, pepeni şi căpşuni - în câmp –",null,null,null,null,null,null,null,null,null,null,null,null,null,null,null,null,null,null,null,null,0,null,null,null,null,null,null,null,6196.49,null,null,null,null,null,null,null,null,null,{"$f":"AE382*AM382","v":0}]
[null,null,null,null,null,null,null,null,null,"- varza,conopida, broccoli, sparanghel",null,null,null,null,null,null,null,null,null,null,null,null,null,null,null,null,null,null,null,null,0,null,null,null,null,null,null,null,null,null,null,null,null,null,null,null,null,null,{"$f":"AE383*AM382","v":0}]
[null,null,null,null,null,null,null,null,null,"- legume pt. frunze (praz, salata, spanac, etc.)",null,null,null,null,null,null,null,null,null,null,null,null,null,null,null,null,null,null,null,null,0,null,null,null,null,null,null,null,null,null,null,null,null,null,null,null,null,null,{"$f":"AE384*AM382","v":0}]
[null,null,null,null,null,null,null,null,null,"- tomate",null,null,null,null,null,null,null,null,null,null,null,null,null,null,null,null,null,null,null,null,0,null,null,null,null,null,null,null,null,null,null,null,null,null,null,null,null,null,{"$f":"AE385*AM382","v":0}]
[null,null,null,null,null,null,null,null,null,"- porumb dulce",null,null,null,null,null,null,null,null,null,null,null,null,null,null,null,null,null,null,null,null,0,null,null,null,null,null,null,null,null,null,null,null,null,null,null,null,null,null,{"$f":"AE386*AM382","v":0}]
[null,null,null,null,null,null,null,null,null,"- legume cultivate pentru fructe - vinete, ardei, dovleci şi dovlecei, castraveciori",null,null,null,null,null,null,null,null,null,null,null,null,null,null,null,null,null,null,null,null,0,null,null,null,null,null,null,null,null,null,null,null,null,null,null,null,null,null,{"$f":"AE387*AM382","v":0}]
[null,null,null,null,null,null,null,null,null,"- legume cultivate pentru rădăcină, bulbi, tuberculi (excepţie cartofi): morcovi, păstârnac, ceapa,usturoi,ridichii, napi",null,null,null,null,null,null,null,null,null,null,null,null,null,null,null,null,null,null,null,null,0,null,null,null,null,null,null,null,null,null,null,null,null,null,null,null,null,null,{"$f":"AE388*AM382","v":0}]
[null,null,null,null,null,null,null,null,null,"- legume păstăi (fasole, mazăre cu excepţia lintei şi a năutului)",null,null,null,null,null,null,null,null,null,null,null,null,null,null,null,null,null,null,null,null,0,null,null,null,null,null,null,null,null,null,null,null,null,null,null,null,null,null,{"$f":"AE389*AM382","v":0}]
[null,null,null,null,null,null,null,null,null,"- fructele plantelor neperene (căpşuni, pepeni galbeni, pepeni verzi, ananas)",null,null,null,null,null,null,null,null,null,null,null,null,null,null,null,null,null,null,null,null,0,null,null,null,null,null,null,null,null,null,null,null,null,null,null,null,null,null,{"$f":"AE390*AM382","v":0}]
["B_1_7_1_2",null,null,null,null,null,null,null,null,"Legume proaspete, pepeni şi căpşuni - în gradina destinate comercializării:",null,null,null,null,null,null,null,null,null,null,null,null,null,null,null,null,null,null,null,null,0,null,null,null,null,null,null,null,7176.16,null,null,null,null,null,null,null,null,null,{"$f":"AE391*AM391","v":0}]
[null,null,null,null,null,null,null,null,null,"- varza,conopida, broccoli, sparanghel",null,null,null,null,null,null,null,null,null,null,null,null,null,null,null,null,null,null,null,null,0,null,null,null,null,null,null,null,null,null,null,null,null,null,null,null,null,null,{"$f":"AE392*AM391","v":0}]
[null,null,null,null,null,null,null,null,null,"- legume pt. frunze (praz, salata, spanac, etc.)",null,null,null,null,null,null,null,null,null,null,null,null,null,null,null,null,null,null,null,null,0,null,null,null,null,null,null,null,null,null,null,null,null,null,null,null,null,null,{"$f":"AE393*AM391","v":0}]
[null,null,null,null,null,null,null,null,null,"- tomate",null,null,null,null,null,null,null,null,null,null,null,null,null,null,null,null,null,null,null,null,0,null,null,null,null,null,null,null,null,null,null,null,null,null,null,null,null,null,{"$f":"AE394*AM391","v":0}]
[null,null,null,null,null,null,null,null,null,"- porumb dulce",null,null,null,null,null,null,null,null,null,null,null,null,null,null,null,null,null,null,null,null,0,null,null,null,null,null,null,null,null,null,null,null,null,null,null,null,null,null,{"$f":"AE395*AM391","v":0}]
[null,null,null,null,null,null,null,null,null,"- legume cultivate pentru fructe - vinete, ardei, dovleci şi dovlecei, castraveciori",null,null,null,null,null,null,null,null,null,null,null,null,null,null,null,null,null,null,null,null,0,null,null,null,null,null,null,null,null,null,null,null,null,null,null,null,null,null,{"$f":"AE396*AM391","v":0}]
[null,null,null,null,null,null,null,null,null,"- legume cultivate pentru rădăcină, bulbi, tuberculi (excepţie cartofi): morcovi, păstârnac, ceapa,usturoi,ridichii, napi",null,null,null,null,null,null,null,null,null,null,null,null,null,null,null,null,null,null,null,null,0,null,null,null,null,null,null,null,null,null,null,null,null,null,null,null,null,null,{"$f":"AE397*AM391","v":0}]
[null,null,null,null,null,null,null,null,null,"- legume păstăi (fasole, mazăre cu excepţia lintei şi a năutului)",null,null,null,null,null,null,null,null,null,null,null,null,null,null,null,null,null,null,null,null,0,null,null,null,null,null,null,null,null,null,null,null,null,null,null,null,null,null,{"$f":"AE398*AM391","v":0}]
[null,null,null,null,null,null,null,null,null,"- fructele plantelor neperene (căpşuni, pepeni galbeni, pepeni verzi, ananas)",null,null,null,null,null,null,null,null,null,null,null,null,null,null,null,null,null,null,null,null,0,null,null,null,null,null,null,null,null,null,null,null,null,null,null,null,null,null,{"$f":"AE399*AM391","v":0}]
["B_1_7_2",null,null,null,null,null,null,null,null,"Legume proaspete, pepeni şi căpşuni - în sere şi solarii:     \n"]
[null,null,null,null,null,null,null,null,null,"- varza, conopida, broccoli, sparanghel",null,null,null,null,null,null,null,null,null,null,null,null,null,null,null,null,null,null,null,null,0,null,null,null,null,null,null,null,27507.66,null,null,null,null,null,null,null,null,null,{"$f":"AE401*AM401","v":0}]
[null,null,null,null,null,null,null,null,null,"- legume pt. frunze (praz, salata, spanac, etc.)",null,null,null,null,null,null,null,null,null,null,null,null,null,null,null,null,null,null,null,null,0,null,null,null,null,null,null,null,null,null,null,null,null,null,null,null,null,null,{"$f":"AE402*AM401","v":0}]
[null,null,null,null,null,null,null,null,null,"- tomate",null,null,null,null,null,null,null,null,null,null,null,null,null,null,null,null,null,null,null,null,0,null,null,null,null,null,null,null,null,null,null,null,null,null,null,null,null,null,{"$f":"AE403*AM401","v":0}]
[null,null,null,null,null,null,null,null,null,"- porumb dulce",null,null,null,null,null,null,null,null,null,null,null,null,null,null,null,null,null,null,null,null,0,null,null,null,null,null,null,null,null,null,null,null,null,null,null,null,null,null,{"$f":"AE404*AM401","v":0}]
[null,null,null,null,null,null,null,null,null,"- legume cultivate pentru fructe - vinete, ardei, dovleci şi dovlecei, castraveciori",null,null,null,null,null,null,null,null,null,null,null,null,null,null,null,null,null,null,null,null,0,null,null,null,null,null,null,null,null,null,null,null,null,null,null,null,null,null,{"$f":"AE405*AM401","v":0}]
[null,null,null,null,null,null,null,null,null,"- legume cultivate pentru rădăcină, bulbi, tuberculi (excepţie cartofi): morcovi, păstârnac, ceapa, usturoi,ridichii, napi",null,null,null,null,null,null,null,null,null,null,null,null,null,null,null,null,null,null,null,null,0,null,null,null,null,null,null,null,null,null,null,null,null,null,null,null,null,null,{"$f":"AE406*AM401","v":0}]
[null,null,null,null,null,null,null,null,null,"- legume păstăi (fasole, mazăre cu excepţia lintei şi a năutului)",null,null,null,null,null,null,null,null,null,null,null,null,null,null,null,null,null,null,null,null,0,null,null,null,null,null,null,null,null,null,null,null,null,null,null,null,null,null,{"$f":"AE407*AM401","v":0}]
[null,null,null,null,null,null,null,null,null,"- fructele plantelor neperene (căpşuni, pepeni galbeni, pepeni verzi, ananas)",null,null,null,null,null,null,null,null,null,null,null,null,null,null,null,null,null,null,null,null,0,null,null,null,null,null,null,null,null,null,null,null,null,null,null,null,null,null,{"$f":"AE408*AM401","v":0}]
["B_1_8_1",null,null,null,null,null,null,null,null,"Flori - în câmp"]
[null,null,null,null,null,null,null,null,null,"- bulbi de flori, cormi şi tuberculi",null,null,null,null,null,null,null,null,null,null,null,null,null,null,null,null,null,null,null,null,0,null,null,null,null,null,null,null,25527.46,null,null,null,null,null,null,null,null,null,{"$f":"AE410*AM410","v":0}]
[null,null,null,null,null,null,null,null,null,"- flori tăiate şi boboci",null,null,null,null,null,null,null,null,null,null,null,null,null,null,null,null,null,null,null,null,0,null,null,null,null,null,null,null,null,null,null,null,null,null,null,null,null,null,{"$f":"AE411*AM410","v":0}]
[null,null,null,null,null,null,null,null,null,"- plante cu flori şi plante ornamentale",null,null,null,null,null,null,null,null,null,null,null,null,null,null,null,null,null,null,null,null,0,null,null,null,null,null,null,null,null,null,null,null,null,null,null,null,null,null,{"$f":"AE412*AM410","v":0}]
["B_1_8_2",null,null,null,null,null,null,null,null,"Flori - în sere şi solarii",null,null,null,null,null,null,null,null,null,null,null,null,null,null,null,null,null,null,null,null,0,null,null,null,null,null,null,null,83743.81,null,null,null,null,null,null,null,null,null,{"$f":"AE413*AM413","v":0}]
[null,null,null,null,null,null,null,null,null,"- bulbi de flori, cormi şi tuberculi",null,null,null,null,null,null,null,null,null,null,null,null,null,null,null,null,null,null,null,null,0,null,null,null,null,null,null,null,null,null,null,null,null,null,null,null,null,null,{"$f":"AE414*AM413","v":0}]
[null,null,null,null,null,null,null,null,null,"- flori tăiate şi boboci",null,null,null,null,null,null,null,null,null,null,null,null,null,null,null,null,null,null,null,null,0,null,null,null,null,null,null,null,null,null,null,null,null,null,null,null,null,null,{"$f":"AE415*AM413","v":0}]
[null,null,null,null,null,null,null,null,null,"- plante cu flori şi plante ornamentale",null,null,null,null,null,null,null,null,null,null,null,null,null,null,null,null,null,null,null,null,0,null,null,null,null,null,null,null,null,null,null,null,null,null,null,null,null,null,{"$f":"AE416*AM413","v":0}]
["B_1_9_1",null,null,null,null,null,null,null,null,"Plante de nutreţ  - iarba temporară - iarba semănată pe terenuri arabile cedate producţiilor furajere erbacee pe o perioadă mai scurtă de 5 ani şi chiar sub un an",null,null,null,null,null,null,null,null,null,null,null,null,null,null,null,null,null,null,null,null,0,null,null,null,null,null,null,null,266.22000000000003,null,null,null,null,null,null,null,null,null,{"$f":"AE417*AM417","v":0}]
["B_1_9_2_1",null,null,null,null,null,null,null,null,"Plante de nutreţ  - alte furaje verzi – porumb siloz",null,null,null,null,null,null,null,null,null,null,null,null,null,null,null,null,null,null,null,null,0,null,null,null,null,null,null,null,1029.19,null,null,null,null,null,null,null,null,null,{"$f":"AE418*AM418","v":0}]
["B_1_9_2_2",null,null,null,null,null,null,null,null,"Plante de nutreţ – alte furaje verzi (culturi anuale de cereale recoltate verzi, sorgul anual, anumite graminee anuale cum sunt firuţa, cruciferele, facelia dacă sunt recoltate verzi şi nu au fost menţionate în altă parte, măzăriche, lupin dulce)",null,null,null,null,null,null,null,null,null,null,null,null,null,null,null,null,null,null,null,null,0,null,null,null,null,null,null,null,476.13,null,null,null,null,null,null,null,null,null,{"$f":"AE419*AM419","v":0}]
["B_1_9_2_99",null,null,null,null,null,null,null,null,"Alte plante de nutreţ(diferite specii de trifoi anual sau peren-trifoi alb, trifoi roşu, trifoi de Alexandria - diferite varietăţi de lucernă ,)",null,null,null,null,null,null,null,null,null,null,null,null,null,null,null,null,null,null,null,null,0,null,null,null,null,null,null,null,662.78,null,null,null,null,null,null,null,null,null,{"$f":"AE420*AM420","v":0}]
["B_1_10",null,null,null,null,null,null,null,null,"Seminţe şi seminceri"]
[null,null,null,null,null,null,null,null,null,"- seminţe de graminee",null,null,null,null,null,null,null,null,null,null,null,null,null,null,null,null,null,null,null,null,0,null,null,null,null,null,null,null,2993.73,null,null,null,null,null,null,null,null,null,{"$f":"AE422*AM422","v":0}]
[null,null,null,null,null,null,null,null,null,"- seminţe pentru horticultură",null,null,null,null,null,null,null,null,null,null,null,null,null,null,null,null,null,null,null,null,0,null,null,null,null,null,null,null,null,null,null,null,null,null,null,null,null,null,{"$f":"AE423*AM422","v":0}]
[null,null,null,null,null,null,null,null,null,"- seminţe şi răsaduri pentru teren arabil cu excepţia cerealelor, a boabelor de leguminoase uscate, a cartofilor, a plantelor oleaginoase",null,null,null,null,null,null,null,null,null,null,null,null,null,null,null,null,null,null,null,null,0,null,null,null,null,null,null,null,null,null,null,null,null,null,null,null,null,null,{"$f":"AE424*AM422","v":0}]
["B_1­­_11",null,null,null,null,null,null,null,null,"Alte plante (culturi de mică importanţă economică care nu pot fi încadrate în altă categorie)",null,null,null,null,null,null,null,null,null,null,null,null,null,null,null,null,null,null,null,null,0,null,null,null,null,null,null,null,592.99,null,null,null,null,null,null,null,null,null,{"$f":"AE425*AM425","v":0}]
["B_3_1",null,null,null,null,null,null,null,null,"Păşuni şi fâneţe permanente - păşuni şi fâneţe",null,null,null,null,null,null,null,null,null,null,null,null,null,null,null,null,null,null,null,null,0,null,null,null,null,null,null,null,295.04000000000002,null,null,null,null,null,null,null,null,null,{"$f":"AE426*AM426","v":0}]
["B_3_2",null,null,null,null,null,null,null,null,"Păşuni şi fâneţe permanente - pe terenuri accidentate - păşuni sărace, inclusiv lăstărişul, de obicei nefertilizate şi neîntrebuinţate – păşuni cu randament scăzut situate în locuri accidentate şi la altitudini mari, care nu sunt cosite – terenuri stâncoase, terenuri mlăştinoase, bărăganuri",null,null,null,null,null,null,null,null,null,null,null,null,null,null,null,null,null,null,null,null,0,null,null,null,null,null,null,null,92.33,null,null,null,null,null,null,null,null,null,{"$f":"AE427*AM427","v":0}]
[]
["B_4_1_1_1",null,null,null,null,null,null,null,null,"Fructe, pomi şi arbuşti - climă temperată:"]
[null,null,null,null,null,null,null,null,null,"Mere",null,null,null,null,null,null,null,null,null,null,null,null,null,null,null,null,null,null,null,null,0,null,null,null,null,null,null,null,2812.04,null,null,null,null,null,null,null,null,null,{"$f":"AE430*AM430","v":0}]
[null,null,null,null,null,null,null,null,null,"Pere",null,null,null,null,null,null,null,null,null,null,null,null,null,null,null,null,null,null,null,null,0,null,null,null,null,null,null,null,null,null,null,null,null,null,null,null,null,null,{"$f":"AE431*AM430","v":0}]
[null,null,null,null,null,null,null,null,null,"Piersici şi nectarine",null,null,null,null,null,null,null,null,null,null,null,null,null,null,null,null,null,null,null,null,0,null,null,null,null,null,null,null,null,null,null,null,null,null,null,null,null,null,{"$f":"AE432*AM430","v":0}]
[null,null,null,null,null,null,null,null,null,"Alte fructe: vişine, cireşe, caise, prune, gutui",null,null,null,null,null,null,null,null,null,null,null,null,null,null,null,null,null,null,null,null,0,null,null,null,null,null,null,null,null,null,null,null,null,null,null,null,null,null,{"$f":"AE433*AM430","v":0}]
["B _4_1_2",null,null,null,null,null,null,null,null,"Livezi de coacăz, smochin, zmeur, muri,agrişe, cătină, afin, goji",null,null,null,null,null,null,null,null,null,null,null,null,null,null,null,null,null,null,null,null,0,null,null,null,null,null,null,null,3958.34,null,null,null,null,null,null,null,null,null,{"$f":"AE434*AM434","v":0}]
["B_4_1_3",null,null,null,null,null,null,null,null,"Fructe, pomi şi arbuşti – nuci, alune",null,null,null,null,null,null,null,null,null,null,null,null,null,null,null,null,null,null,null,null,0,null,null,null,null,null,null,null,1754.4,null,null,null,null,null,null,null,null,null,{"$f":"AE435*AM435","v":0}]
["B_4_4_1",null,null,null,null,null,null,null,null,"Vii - vin nobil",null,null,null,null,null,null,null,null,null,null,null,null,null,null,null,null,null,null,null,null,0,null,null,null,null,null,null,null,1981.83,null,null,null,null,null,null,null,null,null,0]
["B_4_4_2",null,null,null,null,null,null,null,null,"Vii - alte vinuri",null,null,null,null,null,null,null,null,null,null,null,null,null,null,null,null,null,null,null,null,0,null,null,null,null,null,null,null,1889.96,null,null,null,null,null,null,null,null,null,0]
["B_4_4_3",null,null,null,null,null,null,null,null,"Vii – struguri de masa",null,null,null,null,null,null,null,null,null,null,null,null,null,null,null,null,null,null,null,null,0,null,null,null,null,null,null,null,2170.52,null,null,null,null,null,null,null,null,null,0]
["B_4_5",null,null,null,null,null,null,null,null,"Pepiniere",null,null,null,null,null,null,null,null,null,null,null,null,null,null,null,null,null,null,null,null,0,null,null,null,null,null,null,null,5614.25,null,null,null,null,null,null,null,null,null,0]
["B_4_6",null,null,null,null,null,null,null,null,"Alte culturi  permanente: răchita, papura, bambus, salcie, brazi de crăciun",null,null,null,null,null,null,null,null,null,null,null,null,null,null,null,null,null,null,null,null,0,null,null,null,null,null,null,null,487.35,null,null,null,null,null,null,null,null,null,0]
["B_6_1",null,null,null,null,null,null,null,null,"Ciupercării  pe 100 mp (Nr. recolte pe an = 4)",null,null,null,null,null,null,null,null,null,null,null,null,null,null,null,null,null,null,null,null,0,null,null,null,null,null,null,null,4456.78,null,null,null,null,null,null,null,null,null,0]
[null,null,null,null,null,null,null,null,null,"TOTAL VEGETAL",null,null,null,null,null,null,null,null,null,null,null,null,null,null,null,null,null,null,null,null,null,null,null,null,null,null,null,null,null,null,null,null,null,null,null,null,null,null,{"$f":"SUM(AW430:AW441)+SUM(AW422:AW427)+SUM(AW410:AW420)+SUM(AW401:AW408)+SUM(AW358:AW399)","v":0}]
[]
[]
["Coduri EUROSTAT",null,null,null,null,null,null,null,null,"Denumire specii animale",null,null,null,null,null,null,null,null,null,null,null,null,null,null,null,null,null,null,null,null,"Număr capete",null,null,null,null,null,null,null,"SO                                                                                                                                                                                                                                                                                                                                                                                                                                                                                                                                                                                     Euro/cap",null,null,null,null,null,null,null,null,null,"SO            activitate existentă"]
[]
["C_1",null,null,null,null,null,null,null,null,"Ecvidee",null,null,null,null,null,null,null,null,null,null,null,null,null,null,null,null,null,null,null,null,null,null,null,null,null,null,null,null,1404.31,null,null,null,null,null,null,null,null,null,{"$f":"AE447*AM447","v":0}]
["C_2_1",null,null,null,null,null,null,null,null,"Bovine  sub 1 an - total",null,null,null,null,null,null,null,null,null,null,null,null,null,null,null,null,null,null,null,null,null,null,null,null,null,null,null,null,216.38,null,null,null,null,null,null,null,null,null,0]
["C_2_2",null,null,null,null,null,null,null,null,"Bovine sub 2 ani - masculi",null,null,null,null,null,null,null,null,null,null,null,null,null,null,null,null,null,null,null,null,null,null,null,null,null,null,null,null,344.4,null,null,null,null,null,null,null,null,null,0]
["C_2_3",null,null,null,null,null,null,null,null,"Bovine sub 2 ani - femele",null,null,null,null,null,null,null,null,null,null,null,null,null,null,null,null,null,null,null,null,null,null,null,null,null,null,null,null,341.49,null,null,null,null,null,null,null,null,null,0]
["C_2_4",null,null,null,null,null,null,null,null,"Bovine de 2 ani şi peste - masculi",null,null,null,null,null,null,null,null,null,null,null,null,null,null,null,null,null,null,null,null,null,null,null,null,null,null,null,null,817.88,null,null,null,null,null,null,null,null,null,0]
["C_2_5",null,null,null,null,null,null,null,null,"Bovine de 2 ani şi peste  - femele (juninci pentru îngrăşat, juninci pentru reproducţie)",null,null,null,null,null,null,null,null,null,null,null,null,null,null,null,null,null,null,null,null,null,null,null,null,null,null,null,null,801.38,null,null,null,null,null,null,null,null,null,0]
["C_2_6",null,null,null,null,null,null,null,null,"Vaci, bivoliţe  pentru lapte",null,null,null,null,null,null,null,null,null,null,null,null,null,null,null,null,null,null,null,null,null,null,null,null,null,null,null,null,1200.46,null,null,null,null,null,null,null,null,null,0]
["C_2_99",null,null,null,null,null,null,null,null,"Bovine de 2 ani şi peste - alte vaci",null,null,null,null,null,null,null,null,null,null,null,null,null,null,null,null,null,null,null,null,null,null,null,null,null,null,null,null,515.85,null,null,null,null,null,null,null,null,null,{"$f":"AE454*AM454","v":0}]
["C_3_1_1",null,null,null,null,null,null,null,null,"Oi - mioare montate - oi de un an sau mai mult, destinate reproducerii, oile reformate care urmează să fete",null,null,null,null,null,null,null,null,null,null,null,null,null,null,null,null,null,null,null,null,null,null,null,null,null,null,null,null,54.91,null,null,null,null,null,null,null,null,null,0]
["C_3_1_99",null,null,null,null,null,null,null,null,"Oi - alte oi : miei, berbeci, oi reformate - oi sterpe care urmează a fi îngrăşate în vederea sacrificării",null,null,null,null,null,null,null,null,null,null,null,null,null,null,null,null,null,null,null,null,null,null,null,null,null,null,null,null,26.72,null,null,null,null,null,null,null,null,null,0]
["C_3_2_1",null,null,null,null,null,null,null,null,"Capre - capre montate - capre montate femele destinate reproducerii, capre reformate care urmează să fete",null,null,null,null,null,null,null,null,null,null,null,null,null,null,null,null,null,null,null,null,null,null,null,null,null,null,null,null,112.98,null,null,null,null,null,null,null,null,null,0]
["C_3_2_99",null,null,null,null,null,null,null,null,"Capre - alte capre: iezi, ţapi, capre reformate destinate sacrificării",null,null,null,null,null,null,null,null,null,null,null,null,null,null,null,null,null,null,null,null,null,null,null,null,null,null,null,null,39.67,null,null,null,null,null,null,null,null,null,0]
["C_4_1_1",null,null,null,null,null,null,null,null,"Porcine - tineret porcin sub 20 kg",null,null,null,null,null,null,null,null,null,null,null,null,null,null,null,null,null,null,null,null,null,null,null,null,null,null,null,null,33.36,null,null,null,null,null,null,null,null,null,0]
["C_4_1_2",null,null,null,null,null,null,null,null,"Porcine - scroafe pentru reproducţie peste 50 kg",null,null,null,null,null,null,null,null,null,null,null,null,null,null,null,null,null,null,null,null,null,null,null,null,null,null,null,null,262.55,null,null,null,null,null,null,null,null,null,0]
["C_4_1_99",null,null,null,null,null,null,null,null,"Porcine - alte porcine: porci la îngrăşat, vieri, scroafe destinate sacrificării",null,null,null,null,null,null,null,null,null,null,null,null,null,null,null,null,null,null,null,null,null,null,null,null,null,null,null,null,388.08,null,null,null,null,null,null,null,null,null,0]
["C_5_1",null,null,null,null,null,null,null,null,"Pui pentru carne *",null,null,null,null,null,null,null,null,null,null,null,null,null,null,null,null,null,null,null,null,null,null,null,null,null,null,null,null,473.59,null,null,null,null,null,null,null,null,null,0]
["C_5_2",null,null,null,null,null,null,null,null,"Găini ouătoare *",null,null,null,null,null,null,null,null,null,null,null,null,null,null,null,null,null,null,null,null,null,null,null,null,null,null,null,null,2156,null,null,null,null,null,null,null,null,null,0]
["C_5_3_1",null,null,null,null,null,null,null,null,"Curcani şi curci*",null,null,null,null,null,null,null,null,null,null,null,null,null,null,null,null,null,null,null,null,null,null,null,null,null,null,null,null,4205.5600000000004,null,null,null,null,null,null,null,null,null,{"$f":"AE464*AM464","v":0}]
["C_5_3_2",null,null,null,null,null,null,null,null,"Raţe*",null,null,null,null,null,null,null,null,null,null,null,null,null,null,null,null,null,null,null,null,null,null,null,null,null,null,null,null,2824.99,null,null,null,null,null,null,null,null,null,{"$f":"AE465*AM465","v":0}]
["C_5_3_3",null,null,null,null,null,null,null,null,"Gâşte*",null,null,null,null,null,null,null,null,null,null,null,null,null,null,null,null,null,null,null,null,null,null,null,null,null,null,null,null,3602.66,null,null,null,null,null,null,null,null,null,0]
["C_5_3_4",null,null,null,null,null,null,null,null,"Struţi*",null,null,null,null,null,null,null,null,null,null,null,null,null,null,null,null,null,null,null,null,null,null,null,null,null,null,null,null,30083.5,null,null,null,null,null,null,null,null,null,0]
["C_5_3_99",null,null,null,null,null,null,null,null,"Alte păsări: bibilici, porumbei, potârnichi, fazani, prepeliţe*",null,null,null,null,null,null,null,null,null,null,null,null,null,null,null,null,null,null,null,null,null,null,null,null,null,null,null,null,900.34,null,null,null,null,null,null,null,null,null,0]
["C_6",null,null,null,null,null,null,null,null,"Iepuri",null,null,null,null,null,null,null,null,null,null,null,null,null,null,null,null,null,null,null,null,null,null,null,null,null,null,null,null,13.91,null,null,null,null,null,null,null,null,null,{"$f":"AE469*AM469","v":0}]
[null,null,null,null,null,null,null,null,null,"   (femele iepuri)"]
["C_7",null,null,null,null,null,null,null,null,"Familii de albine",null,null,null,null,null,null,null,null,null,null,null,null,null,null,null,null,null,null,null,null,null,null,null,null,null,null,null,null,59.62,null,null,null,null,null,null,null,null,null,{"$f":"AE471*AM471","v":0}]
[null,null,null,null,null,null,null,null,null,"* Valoarea SO se referă la 100 capete"]
[null,null,null,null,null,null,null,null,null,"TOTAL ZOOTEHNIC",null,null,null,null,null,null,null,null,null,null,null,null,null,null,null,null,null,null,null,null,null,null,null,null,null,null,null,null,null,null,null,null,null,null,null,null,null,null,{"$f":"AW471+SUM(AW447:AW469)","v":0}]
[null,null,null,null,null,null,null,null,null,"TOTAL VEGETAL",null,null,null,null,null,null,null,null,null,null,null,null,null,null,null,null,null,null,null,null,null,null,null,null,null,null,null,null,null,null,null,null,null,null,null,null,null,null,{"$f":"AW442","v":0}]
[null,null,null,null,null,null,null,null,null,"TOTAL GENERAL",null,null,null,null,null,null,null,null,null,null,null,null,null,null,null,null,null,null,null,null,null,null,null,null,null,null,null,null,null,null,null,null,null,null,null,null,null,null,{"$f":"AW471+AW442+SUM(AW447:AW469)","v":0}]
[]
["Valoare sprijin:*",null,null,null,null,null,null,null,null,null,{"$f":" IF(AND((AW475>=4000), (AW475<=7999)),\"15.000,00 EURO\",\"neeligibil\")","v":"neeligibil"}]
[]
["Curs EURO la data întocmirii Planului de Afaceri:",null,null,null,null,null,null,null,null,null,null,null,null,null,null,null,null,null,null,null,null,null,null,null,null,null,null,null,null,null,null,null,null,"Data întocmire Plan de Afaceri:"]
[]
["1) Valoarea SO se referă la 100 capete "]
["Cabalinele luate in calcul nu sunt destinate consumului uman, ci deservesc munca în exploataţie\nÎn cazul exploataţiilor de creștere a bovinelor:\nBovinele pentru carne sunt cele destinate sacrificării: bovine sub un an, bovine sub 2 ani (femele și masculi), bovine de doi ani și peste (femele și masculi),\nalte bovine (tauri, boi, alte bovine reformate destinate sacrificării).\nBovinele sub un an se iau în calculul dimensiunii economice, astfel:\n-dacă în cadrul exploatației se găsesc vaci de lapte, atunci calculul dimensiunii economice se face prin însumarea producților standard pentru vaci de lapte și\na producțiilor standard pentru vițeii sub un an al căror număr depășește numărul vacilor de lapte\n-dacă în cadrul exploatației nu se găsesc vaci de lapte, atunci calculul dimensiunii economice se face prin însumarea producțiilor standard pentru vițeii sub\nun an al căror număr există la acel moment în cadrul exploatației\nÎn cazul exploataţiilor de creștere a ovinelor / caprinelor:\nNumărul de miei/iezi se ia în calculul dimensiunii economice numai dacă în cadrul exploatației nu sunt oi, respectiv capre pentru reproducție .\nÎn cazul exploataţiilor de creștere a porcinelor:\nNumărul de porcine sub 20 kg se ia în calculul dimensiunii economice numai dacă în cadrul exploatației nu sunt scroafe de reproducție.\nValoarea SO este calculată pe stup.\nLegislația care a stat la baza stabilirii coeficienților de calcul se regăsește la cap. 4.5 - Legislația europeană și națională aplicabilă din Ghidul solicitantului aferent Sub-măsurii 6.3."]
["F. DECLARAŢIE PE PROPRIA RĂSPUNDERE A SOLICITANTULUI"]
["Prin această declaraţie solicitantul"]
[]
["cunoscând prevederile Codului Penal privind la falsul în declaraţii, care solicită asistenţă financiară nerambursabilă prin Programul FEADR pentru proiectul Măsurii 2.2, intitulat"]
[]
[]
[]
[]
[null,null,null,"1. Declar pe propria răspundere că îndeplinesc condiţiile de eligibilitate privind acordarea sprijinului prevăzut în Fişa Tehnică a Măsurii 2.2, Anexa nr.1 la Ghidul Solicitantului şi mă angajez să le respect pe o perioadă egală cu perioada de implementare şi monitorizare a proiectelor începând cu anul depunerii cererii de finanţare."]
[null,null,null,"2. Declar pe propria răspundere că toate informaţiile din Cererea de Finanţare şi din documentele anexate acesteia sunt corecte şi mă angajez să respect condiţiile cerute în reglementările referitoare la prezentul program şi pe cele legate de proiectul anexat şi să furnizez periodic, la cerere, documente justificative necesare."]
[null,null,null,"3. Declar pe propria răspundere că orice modificări aduse dreptului de proprietate sau de folosinţă vor fi notificate  AFIR / GAL în termen de trei zile calendaristice de la data încheierii documentelor respective. "]
[null,null,null,"4. Declar pe propria răspundere că mă angajez ca pe perioada de valabilitate a Deciziei de finanţare de 6/ 8 ani (pentru sectorul pomicol) să nu reduc  suprafaţa exploataţiei din anul 0 şi din anul ţinta, cuprinsă în proiect."]
[null,null,null,"5. Declar pe propria răspundere că mă angajez ca pe perioada de valabilitate a Deciziei de finanţare, perioadă egală cu perioada de implementare şi monitorizare a proiectelor începând cu anul depunerii cererii de finanţare, să nu reduc suprafaţa exploataţiei din anul 0 şi din anul ţintă, cuprinsă în proiect."]
[null,null,null,"6. Declar că nu sunt într-unul din următoarele cazuri:"]
[null,null,null,"a. Acuzat din cauza unei greseli privind conduită profesională având ca soluţie finală res judicata (împotriva căreia niciun apel nu este posibil)."]
[null,null,null,"b. Vinovat de grave deficienţe de conduită profesională dovedite prin orice mijloace pe care Agenţia/ GAL le poate justifica. "]
[null,null,null,"c. Vinovat de faptul că nu am prezentat informaţiile cerute de Autoritatea Contractantă ca o condiţie de participare la contractare."]
[null,null,null,"d. Nerespectarea prevederilor contractuale prin care nu mi-am îndeplinit obligaţiile contractuale în legatură cu un alt Contract/ Decizie de Finanţare încheiat cu AFIR/ GAL sau alte contracte finanţate din fonduri europene."]
[null,null,null,"e. Încalcarea de a obţine informaţii confidenţiale sau de influenţare a AFIR sau GAL în timpul procesului de evaluare a proiectului şi nu voi face presiuni la adresa evaluatorului."]
[null,null,null,"7. Declar pe propria răspundere că mă angajez că toate obiectivele prevăzute în Planul de Afaceri să fie realizate cu respectarea prevederilor legislatiei naţionale şi europene în vigoare şi după caz, să obţin autorizaţiile necesare implementării proiectului până la verificarea îndeplinirii Planului de Afaceri la tranşa a doua de plată."]
[null,null,null,"8. Declar pe propria răspundere că mă angajez că voi respecta pe toată perioadă de valabilitate a Deciziei de Finanţare  condiţiile de implementare, iar dacă se constată că nu mai sunt indeplinite obiectivele din Planul de Afaceri, Autoritatea Contractanta poate proceda, după caz, fie la recuperarea integrală a ajutorului financiar nerambursabil plătit şi la încetarea de drept a Deciziei de finantare, fie la recuperarea parţială, respectiv proporţional cu obiectivele nerealizate din Planul de afaceri afectate de neregulă."]
[null,null,null,"9. Declaraţia pe propria răspundere că mă angajez că voi menţine criteriul de selecţie privind soiurile autohtone pe toată perioada de valabilitate a deciziei de finanţare, perioadă egală cu perioada de implementare şi monitorizare a proiectelor începând cu anul depunerii cererii de finanţare."]
[null,null,null,"10. Declaraţia pe propria răspundere că mă angajez că voi îndeplini criteriul de selecţie privind  soiurile autohtone până la momentul depunerii celei de a doua tranşe de sprijin, pentru dezvoltarea exploataţiei cu astfel de soiuri."]
[null,null,null,"11. Declar pe propria răspundere că mă angajez că voi menţine criteriul de selecţie privind rasele autohtone pe toată perioada de valabilitate a deciziei de finanţare, perioadă egală cu perioada de implementare şi monitorizare a proiectelor începând cu anul depunerii cererii de finanţare."]
[null,null,null,"12. Declar pe propria răspundere că mă angajez că voi îndeplini criteriul de selecţie privind rasele autohtone până la momentul depunerii celei de a doua tranşe de sprijin, pentru dezvoltarea exploataţiei cu astfel de specii.  "]
[null,null,null,"13. Declar pe propria răspundere că nu am înscrisuri care privesc sancțiuni economico-financiare în cazierul judiciar pe care mă oblig să îl depun la încheierea contractului de finanţare . Prin prezenta îmi exprim consimțământul ca AFIR să solicite instituțiilor abilitate conform legii, extrasul de pe cazierul judiciar privind situația mea.\n(Până la reglementarea posibilităţii aplicării de către experţii evaluatori AFIR a normelor metodologice aferente Legii nr. 290/2004 privind cazierul judiciar, cu modificările şi completările ulterioare, solicitantul are obligaţia depunerii documentului justificativ mai sus enunţat.)  "]
[null,null,null,"14.  Declar pe propria răspunderii că în cazul în care, exploataţia zootehnică pe care o deţin va fi selectată şi primeşte sprijin financiar nerambursabil, să o înregistrez la ANSVSA, ca exploataţie comercială de tip A, până la data semnării Deciziei de Finanţare."]
[null,null,null,"15. Sunt de acord ca AFIR și GAL să consulte şi să prelucreze, prin operaţiunile prevăzute de legislaţia în vigoare în vederea desfăşurării activităţii specifice, datele mele cu caracter personal, furnizate AFIR și GAL. "]
["Semnătura reprezentant legal ",null,null,null,null,null,null,null,null,null,null,null,null,null,null,null,null,null,null,null,null,null,null,null,null,null,null,null,null,null,null,null,null,null,null,null,null,null,null,null,null," Data:"]
[]
[]
[]
["Anexa INDICATORI DE MONITORIZARE"]
["Măsura 2.2 - Ferme mici și mijlocii\n"]
[]
["1. Cod CAEN"]
["2. Tipul beneficiarului",null,null,null,null,null,null,null,null,null,null,null,null,null,null,null,null,"Solicitanți înființați în baza OUG 44/ 2008",null,null,null,null,null,null,null,null,null,null,null,null,"Bărbaţi",null,null,null,null,null,null,null,null,null,null,"< 40"]
[null,null,null,null,null,null,null,null,null,null,null,null,null,null,null,null,null,null,null,null,null,null,null,null,null,null,null,null,null,null,null,null,null,null,null,null,null,null,null,null,null,">= 40"]
[null,null,null,null,null,null,null,null,null,null,null,null,null,null,null,null,null,null,null,null,null,null,null,null,null,null,null,null,null,null,"Femei",null,null,null,null,null,null,null,null,null,null,"< 40"]
[null,null,null,null,null,null,null,null,null,null,null,null,null,null,null,null,null,null,null,null,null,null,null,null,null,null,null,null,null,null,null,null,null,null,null,null,null,null,null,null,null,">= 40"]
[null,null,null,null,null,null,null,null,null,null,null,null,null,null,null,null,null,"Persoană juridică"]
["3. Tipul producţiei",null,null,null,null,null,null,null,null,null,null,null,null,null,null,null,null,"Ecologică"]
[null,null,null,null,null,null,null,null,null,null,null,null,null,null,null,null,null,"Convenţională"]
["4. Suprafaţa exploataţiei agricole sprijinite (Ha)"]
["5. Dimensiunea economică a exploataţiei(intre 4.000 și 7.999 Euro - valoare Producţie Standard)"]
[null,null,null,null,null,null,null,null,null,null,null,null,null,null,null,null,null,"Zootehnic"]
["6. Tip ramură agricolă",null,null,null,null,null,null,null,null,null,null,null,null,null,null,null,null,"Vegetal"]
["7. Crearea de locuri de muncă",null,null,null,null,null,null,null,null,null,null,null,null,null,null,null,null,"Crearea a mai mult de 1 locuri de muncă(inclusiv 1 loc de  muncă cu normă întreagă - 8 ore/zi))"]
[null,null,null,null,null,null,null,null,null,null,null,null,null,null,null,null,null,"Crearea unei norme parțială de muncă (1/2 din norma întreagă de muncă - 4 ore/zi)"]
["Indic. nr. 1 - reprezintă codul CAEN pentru investiţia vizată prin proiect\nIndic. nr. 2, 3,6, 7 - se va bifa doar o singură categorie/ categoria majoritară\nIndic. nr. 4 - se completează suprafaţa (Ha) exploataţiei agricole sprijinite prin proiect\nIndic. nr. 5 - se va completa dimensiunea economică a exploatatiei\n"]
[]
[null,"REGULI DE COMPLETARE"]
[null,"Trebuie bifate şi anexate toate documentele  de pe coloana “DEPUNERE - Obligatoriu pentru toate proiectele” din secţiunea D  - Lista documentelor anexate.\n \nSe vor completa celulele albe din tabelul privind stabilirea categoriei de ferma cu suprafetele/numărul de capete aferent culturii/speciei, iar calculul valorii producţiei standard (SO) se va efectua automat.\n \nSe va completa Declaraţia pe propria raspundere a solicitantului cu datele solicitate (denumire/nume prenume solicitant,  titlul proiectului). \n \nCâmpurile Nivel de studii şi denumirea instituţiei care a emis documentul se va completa cu: competentele şi aptitudinile profesionale îndeplinite. \n \nPentru indicatorii de tip numeric care nu fac obiectul investitiei se va completa valoarea zero."]

{"sheet":"Anexa 3","index":1,"n_rows":80,"n_cols":52,"rows_kept":80,"cut":false,"hidden":false,"merged":[[78,0,78,3],[78,4,78,41],[78,42,78,50],[78,51,78,60],[79,0,79,3],[79,4,79,41],[79,42,79,60],[76,0,76,3],[76,4,76,41],[76,42,76,50],[76,51,76,60],[77,0,77,3],[77,4,77,41],[77,42,77,50],[77,51,77,60],[74,0,74,3],[74,4,74,41],[74,42,74,50],[74,51,74,60],[75,0,75,3],[75,4,75,41],[75,42,75,50],[75,51,75,60],[72,0,72,3],[72,4,72,41],[72,42,72,50],[72,51,72,60],[73,0,73,3],[73,4,73,41],[73,42,73,50],[73,51,73,60],[70,0,70,3],[70,4,70,41],[70,42,70,50],[70,51,70,60],[71,0,71,3],[71,4,71,41],[71,42,71,50],[71,51,71,60],[68,0,68,3],[68,4,68,41],[68,42,68,50],[68,51,68,60],[69,0,69,3],[69,4,69,41],[69,42,69,50],[69,51,69,60],[65,0,65,60],[66,0,66,3],[66,4,66,41],[66,42,66,50],[66,51,66,60],[67,0,67,3],[67,4,67,41],[67,42,67,50],[67,51,67,60],[62,0,62,3],[62,4,62,41],[62,42,62,50],[62,51,62,60],[63,0,63,60],[64,0,64,3],[64,4,64,41],[64,42,64,50],[64,51,64,60],[60,0,60,3],[60,4,60,41],[60,42,60,50],[60,51,60,60],[61,0,61,41],[61,42,61,60],[58,0,58,3],[58,4,58,41],[58,42,58,50],[58,51,58,60],[59,0,59,3],[59,4,59,41],[59,42,59,50],[59,51,59,60],[56,0,56,3],[56,4,56,41],[56,42,56,50],[56,51,56,60],[57,0,57,3],[57,4,57,41],[57,42,57,50],[57,51,57,60],[54,0,54,3],[54,4,54,41],[54,42,54,50],[54,51,54,60],[55,0,55,3],[55,4,55,41],[55,42,55,50],[55,51,55,60],[52,0,52,3],[52,4,52,41],[52,42,52,50],[52,51,52,60],[53,0,53,3],[53,4,53,41],[53,42,53,50],[53,51,53,60],[50,42,50,50],[50,51,50,60],[51,0,51,3],[51,4,51,41],[51,42,51,50],[51,51,51,60],[42,7,42,41],[42,42,43,60],[43,7,43,41],[44,7,44,41],[44,42,44,50],[44,51,44,60],[45,7,45,60],[37,0,37,3],[37,4,37,41],[37,42,37,50],[37,51,37,60],[38,0,38,3],[38,4,38,41],[38,42,38,60],[35,0,35,3],[35,4,35,41],[35,42,35,50],[35,51,35,60],[36,0,36,3],[36,4,36,41],[36,42,36,50],[36,51,36,60],[33,0,33,3],[33,4,33,41],[33,42,33,50],[33,51,33,60],[34,0,34,3],[34,4,34,41],[34,42,34,50],[34,51,34,60],[31,0,31,3],[31,4,31,41],[31,42,31,50],[31,51,31,60],[32,0,32,3],[32,4,32,41],[32,42,32,50],[32,51,32,60],[29,0,29,3],[29,4,29,41],[29,42,29,50],[29,51,29,60],[30,0,30,3],[30,4,30,41],[30,42,30,50],[30,51,30,60],[27,0,27,3],[27,4,27,41],[27,42,27,50],[27,51,27,60],[28,0,28,3],[28,4,28,41],[28,42,28,50],[28,51,28,60],[25,0,25,3],[25,4,25,41],[25,42,25,50],[25,51,25,60],[26,0,26,3],[26,4,26,41],[26,42,26,50],[26,51,26,60],[22,0,22,60],[23,0,23,3],[23,4,23,41],[23,42,23,50],[23,51,23,60],[24,0,24,60],[20,0,20,41],[20,42,20,60],[21,0,21,3],[21,4,21,41],[21,42,21,50],[21,51,21,60],[13,0,13,3],[13,4,13,41],[13,42,13,50],[13,51,13,60],[18,0,18,3],[18,4,18,41],[18,42,18,50],[18,51,18,60],[19,0,19,3],[19,4,19,41],[19,42,19,50],[19,51,19,60],[16,0,16,3],[16,4,16,41],[16,42,16,50],[16,51,16,60],[17,0,17,3],[17,4,17,41],[17,42,17,50],[17,51,17,60],[1,7,1,41],[1,42,2,60],[2,7,2,41],[10,0,10,3],[10,4,10,41],[10,42,10,50],[10,51,10,60],[11,0,11,3],[11,4,11,41],[11,42,11,50],[11,51,11,60],[7,0,7,60],[8,0,8,60],[9,0,9,3],[9,4,9,41],[9,42,9,50],[9,51,9,60],[46,0,46,60],[47,0,47,60],[48,0,48,60],[49,0,49,60],[50,0,50,3],[50,4,50,41],[3,7,3,41],[3,42,3,50],[3,51,3,60],[4,7,4,60],[5,0,5,60],[6,0,6,60],[14,0,14,3],[14,4,14,41],[14,42,14,50],[14,51,14,60],[15,0,15,3],[15,4,15,41],[15,42,15,50],[15,51,15,60],[12,0,12,3],[12,4,12,41],[12,42,12,50],[12,51,12,60]]}
[]
[null,null,null,null,null,null,null,"ASOCIAȚIA INTERCOMUNITARĂ ”ȚARA ZARANDULUI” LEADER GAL",null,null,null,null,null,null,null,null,null,null,null,null,null,null,null,null,null,null,null,null,null,null,null,null,null,null,null,null,null,null,null,null,null,null,"Anexa A3"]
[]
[null,null,null,null,null,null,null,null,null,null,null,null,null,null,null,null,null,null,null,null,null,null,null,null,null,null,null,null,null,null,null,null,null,null,null,null,null,null,null,null,null,null,null,null,null,null,null,null,null,null,null,"Nr.2"]
[]
[]
[]
["(Titlu deviz)"]
["Deviz capitolul 2- Cheltuieli pentru asigurarea utilităţilor necesare obiectivului - EURO"]
["Nr.crt",null,null,null,"Specificaţie",null,null,null,null,null,null,null,null,null,null,null,null,null,null,null,null,null,null,null,null,null,null,null,null,null,null,null,null,null,null,null,null,null,null,null,null,null,"Valoare eligibilă",null,null,null,null,null,null,null,null,"Valoare\nneeligibilă"]
[1,null,null,null,"Alimentare cu apă"]
[2,null,null,null,"Canalizare"]
[3,null,null,null,"Alimentare cu gaze naturale"]
[4,null,null,null,"Alimentare cu agent termic"]
[5,null,null,null,"Alimentare cu energie electrică"]
[6,null,null,null,"Telecomunicaţii (telefonie, radio-tv,etc)"]
[7,null,null,null,"Alte tipuri de reţele exterioare"]
[8,null,null,null,"Drumuri de acces"]
[null,null,null,null,"Total valoare fără TVA",null,null,null,null,null,null,null,null,null,null,null,null,null,null,null,null,null,null,null,null,null,null,null,null,null,null,null,null,null,null,null,null,null,null,null,null,null,{"$f":"SUM(AQ11:AY18)","v":0},null,null,null,null,null,null,null,null,{"$f":"SUM(AZ11:BI18)","v":0}]
[null,null,null,null,"Valoare TVA aferentă cheltuielilor eligibile şi neeligibile"]
["TOTAL DEVIZ CAPITOLUL 2 (inclusiv TVA)",null,null,null,null,null,null,null,null,null,null,null,null,null,null,null,null,null,null,null,null,null,null,null,null,null,null,null,null,null,null,null,null,null,null,null,null,null,null,null,null,null,{"$f":"AQ19+AZ19+AQ20+AZ20","v":0}]
[]
[" Deviz capitolul 5 - Alte cheltuieli - EURO"]
["Nr.crt",null,null,null,"Specificaţie",null,null,null,null,null,null,null,null,null,null,null,null,null,null,null,null,null,null,null,null,null,null,null,null,null,null,null,null,null,null,null,null,null,null,null,null,null,"Valoare eligibilă",null,null,null,null,null,null,null,null,"Valoare\nneeligibilă"]
[]
["5.1 ",null,null,null,"Organizare de şantier",null,null,null,null,null,null,null,null,null,null,null,null,null,null,null,null,null,null,null,null,null,null,null,null,null,null,null,null,null,null,null,null,null,null,null,null,null,{"$f":"SUM(AQ27:AY28)","v":0},null,null,null,null,null,null,null,null,{"$f":"SUM(AZ27:BI28)","v":0}]
["5.1.1",null,null,null,"lucrări de construcţii şi instalaţii aferente organizării de şantier"]
["5.1.2",null,null,null,"cheltuieli conexe organizării de şantier"]
["5.2",null,null,null,"Comisioane, taxe",null,null,null,null,null,null,null,null,null,null,null,null,null,null,null,null,null,null,null,null,null,null,null,null,null,null,null,null,null,null,null,null,null,null,null,null,null,{"$f":"SUM(AQ31:AY34)","v":0},null,null,null,null,null,null,null,null,{"$f":"SUM(AZ30:BI36)","v":0}]
[null,null,null,null,"comisionul băncii finanţatoare"]
[null,null,null,null,"cota aferentă Inspectoratului de Stat în Construcţii pentru controlul calităţii lucrărilor de construcţii"]
[null,null,null,null,"cota pentru controlul statului în amenajarea teritoriului, urbanism şi pentru autorizarea lucrărilor de construcţii"]
[null,null,null,null,"prime de asigurare din sarcina autorităţii contractante"]
[null,null,null,null,"alte cheltuieli de aceeaşi natură, stabilite în condiţiile legii"]
[null,null,null,null,"cota aferentă Casei Sociale a Constructorilor"]
["5.3",null,null,null," Cheltuieli diverse si neprevazute"]
[null,null,null,null,"TOTAL DEVIZ CAPITOLUL 5",null,null,null,null,null,null,null,null,null,null,null,null,null,null,null,null,null,null,null,null,null,null,null,null,null,null,null,null,null,null,null,null,null,null,null,null,null,{"$f":"AQ26+AQ29","v":0},null,null,null,null,null,null,null,null,{"$f":"AZ26+AZ29+AZ36","v":0}]
[null,null,null,null,"VALOARE TVA aferentă cheltuielilor eligibile şi neeligibile"]
[null,null,null,null,"TOTAL DEVIZ CAPITOLUL 5 ( inclusiv TVA)",null,null,null,null,null,null,null,null,null,null,null,null,null,null,null,null,null,null,null,null,null,null,null,null,null,null,null,null,null,null,null,null,null,null,null,null,null,{"$f":"AQ37+AZ37+AQ38+AZ38","v":0}]
[]
[]
[]
[null,null,null,null,null,null,null,"ASOCIAȚIA INTERCOMUNITARĂ ”ȚARA ZARANDULUI”LEADER GAL",null,null,null,null,null,null,null,null,null,null,null,null,null,null,null,null,null,null,null,null,null,null,null,null,null,null,null,null,null,null,null,null,null,null,"Anexa A3"]
[]
[null,null,null,null,null,null,null,null,null,null,null,null,null,null,null,null,null,null,null,null,null,null,null,null,null,null,null,null,null,null,null,null,null,null,null,null,null,null,null,null,null,null,null,null,null,null,null,null,null,null,null,"Nr.3"]
[]
[]
[]
["(Titlu deviz)"]
["Deviz capitolul 2- Cheltuieli pentru asigurarea utilităţilor necesare obiectivului - EURO"]
["Nr.crt",null,null,null,"Specificaţie",null,null,null,null,null,null,null,null,null,null,null,null,null,null,null,null,null,null,null,null,null,null,null,null,null,null,null,null,null,null,null,null,null,null,null,null,null,"Valoare eligibilă",null,null,null,null,null,null,null,null,"Valoare\nneeligibilă"]
[1,null,null,null,"Alimentare cu apă"]
[2,null,null,null,"Canalizare"]
[3,null,null,null,"Alimentare cu gaze naturale"]
[4,null,null,null,"Alimentare cu agent termic"]
[5,null,null,null,"Alimentare cu energie electrică"]
[6,null,null,null,"Telecomunicaţii (telefonie, radio-tv,etc)"]
[7,null,null,null,"Alte tipuri de reţele exterioare"]
[8,null,null,null,"Drumuri de acces"]
[null,null,null,null,"Total valoare fără TVA",null,null,null,null,null,null,null,null,null,null,null,null,null,null,null,null,null,null,null,null,null,null,null,null,null,null,null,null,null,null,null,null,null,null,null,null,null,{"$f":"SUM(AQ52:AY59)","v":0},null,null,null,null,null,null,null,null,{"$f":"SUM(AZ52:BI59)","v":0}]
[null,null,null,null,"Valoare TVA aferentă cheltuielilor eligibile şi neeligibile"]
["TOTAL DEVIZ CAPITOLUL 2 (inclusiv TVA)",null,null,null,null,null,null,null,null,null,null,null,null,null,null,null,null,null,null,null,null,null,null,null,null,null,null,null,null,null,null,null,null,null,null,null,null,null,null,null,null,null,{"$f":"AQ60+AZ60+AQ61+AZ61","v":0}]
[]
[" Deviz capitolul 5 - Alte cheltuieli - EURO"]
["Nr.crt",null,null,null,"Specificaţie",null,null,null,null,null,null,null,null,null,null,null,null,null,null,null,null,null,null,null,null,null,null,null,null,null,null,null,null,null,null,null,null,null,null,null,null,null,"Valoare eligibilă",null,null,null,null,null,null,null,null,"Valoare\nneeligibilă"]
[]
["5.1 ",null,null,null,"Organizare de şantier",null,null,null,null,null,null,null,null,null,null,null,null,null,null,null,null,null,null,null,null,null,null,null,null,null,null,null,null,null,null,null,null,null,null,null,null,null,{"$f":"SUM(AQ68:AY69)","v":0},null,null,null,null,null,null,null,null,{"$f":"SUM(AZ68:BI69)","v":0}]
["5.1.1",null,null,null,"lucrări de construcţii şi instalaţii aferente organizării de şantier"]
["5.1.2",null,null,null,"cheltuieli conexe organizării de şantier"]
["5.2",null,null,null,"Comisioane, taxe",null,null,null,null,null,null,null,null,null,null,null,null,null,null,null,null,null,null,null,null,null,null,null,null,null,null,null,null,null,null,null,null,null,null,null,null,null,{"$f":"SUM(AQ72:AY75)","v":0},null,null,null,null,null,null,null,null,{"$f":"SUM(AZ71:BI77)","v":0}]
[null,null,null,null,"comisionul băncii finanţatoare"]
[null,null,null,null,"cota aferentă Inspectoratului de Stat în Construcţii pentru controlul calităţii lucrărilor de construcţii"]
[null,null,null,null,"cota pentru controlul statului în amenajarea teritoriului, urbanism şi pentru autorizarea lucrărilor de construcţii"]
[null,null,null,null,"prime de asigurare din sarcina autorităţii contractante"]
[null,null,null,null,"alte cheltuieli de aceeaşi natură, stabilite în condiţiile legii"]
[null,null,null,null,"cota aferentă Casei Sociale a Constructorilor"]
["5.3",null,null,null," Cheltuieli diverse si neprevazute"]
[null,null,null,null,"TOTAL DEVIZ CAPITOLUL 5",null,null,null,null,null,null,null,null,null,null,null,null,null,null,null,null,null,null,null,null,null,null,null,null,null,null,null,null,null,null,null,null,null,null,null,null,null,{"$f":"AQ67+AQ70","v":0},null,null,null,null,null,null,null,null,{"$f":"AZ67+AZ70+AZ77","v":0}]
[null,null,null,null,"VALOARE TVA aferentă cheltuielilor eligibile şi neeligibile"]
[null,null,null,null,"TOTAL DEVIZ CAPITOLUL 5 ( inclusiv TVA)",null,null,null,null,null,null,null,null,null,null,null,null,null,null,null,null,null,null,null,null,null,null,null,null,null,null,null,null,null,null,null,null,null,null,null,null,null,{"$f":"AQ78+AZ78+AQ79+AZ79","v":0}]

{"sheet":"A8-Detalii privind terenul ","index":2,"n_rows":22,"n_cols":44,"rows_kept":22,"cut":false,"hidden":false,"merged":[[16,1,16,14],[20,1,20,58],[21,1,21,24],[21,26,21,41],[21,43,21,58],[17,43,17,50],[18,32,18,40],[18,43,18,50],[19,3,19,49],[1,2,1,58],[2,1,2,14],[2,16,2,34],[2,36,2,58],[3,1,3,14],[3,16,3,34],[3,36,3,58],[7,3,7,49],[4,1,4,14],[5,3,5,14],[5,16,5,21],[5,23,5,29],[5,32,5,40],[5,43,5,50],[6,3,6,14],[6,16,6,21],[6,23,6,29],[6,32,6,40],[6,43,6,50],[8,1,8,58],[9,1,9,24],[9,26,9,41],[9,43,9,58],[10,1,10,24],[10,26,10,41],[10,43,10,58],[22,1,22,24],[22,43,22,58],[17,3,17,14],[17,16,17,21],[17,23,17,29],[17,32,17,40],[18,3,18,14],[18,16,18,21],[18,23,18,29],[22,26,22,41],[13,2,13,58],[14,1,14,14],[14,16,14,34],[14,36,14,58],[15,1,15,14],[15,16,15,34],[15,36,15,58]]}
[]
[null,null,"A8 DETALII PRIVIND TERENUL EXPLOATAŢIEI CARE STĂ LA BAZA CALCULULUI SO:"]
[null,"Judeţ",null,null,null,null,null,null,null,null,null,null,null,null,null,null,"Comună",null,null,null,null,null,null,null,null,null,null,null,null,null,null,null,null,null,null,null,"Sat"]
[]
[null,"Modalităţi deţinere"]
[null,null,null,"Moştenire / Donaţie",null,null,null,null,null,null,null,null,null,null,null,null,null,null,null,null,null,null,null,"Blocul fizic",null,null,null,null,null,null,null," ","Parcela",null,null,null,null,null,null,null,null,null,null,"Tarlaua"]
[null,null,null,"Achiziţie"]
[null,null,null,"Arendă / Concesiune/ Comodat / Închiriere/ Dare temporă în administrare sau folosinţă"]
[null,"Persoana care a dat moştenirea/donaţia/vânzător/arendator/concedent/comodant/locator / Persoana care a dat temporar în administrare sau folosință"]
[null,"Nume si prenume / Denumire",null,null,null,null,null,null,null,null,null,null,null,null,null,null,null,null,null,null,null,null,null,null,null,null,"Cod unic înregistrare/Cod numeric personal",null,null,null,null,null,null,null,null,null,null,null,null,null,null,null,null,"Act identitate (serie/număr) cetăţeni străini"]
[]
[]
[]
[null,null,"A8 DETALII PRIVIND TERENUL EXPLOATAŢIEI CARE STĂ LA BAZA CALCULULUI SO:"]
[null,"Judeţ",null,null,null,null,null,null,null,null,null,null,null,null,null,null,"Comună",null,null,null,null,null,null,null,null,null,null,null,null,null,null,null,null,null,null,null,"Sat"]
[]
[null,"Modalităţi deţinere"]
[null,null,null,"Moştenire / Donaţie",null,null,null,null,null,null,null,null,null,null,null,null,null,null,null,null,null,null,null,"Blocul fizic",null,null,null,null,null,null,null," ","Parcela",null,null,null,null,null,null,null,null,null,null,"Tarlaua"]
[null,null,null,"Achiziţie"]
[null,null,null,"Arendă / Concesiune/ Comodat / Închiriere/ Dare temporă în administrare sau folosinţă"]
[null,"Persoana care a dat moştenirea/donaţia/vânzător/arendator/concedent/comodant/locator / Persoana care a dat temporar în administrare sau folosință"]
[null,"Nume si prenume / Denumire",null,null,null,null,null,null,null,null,null,null,null,null,null,null,null,null,null,null,null,null,null,null,null,null,"Cod unic înregistrare/Cod numeric personal",null,null,null,null,null,null,null,null,null,null,null,null,null,null,null,null,"Act identitate (serie/număr) cetăţeni străini"]

{"sheet":"Asociati","index":3,"n_rows":24,"n_cols":52,"rows_kept":24,"cut":false,"hidden":false,"merged":[[22,18,22,20],[11,10,11,15],[16,3,16,16],[16,17,16,49],[18,3,18,10],[18,24,18,49],[19,3,19,16],[19,24,19,49],[23,51,24,58],[24,4,24,6],[24,7,24,9],[24,10,24,15],[22,28,22,35],[22,37,22,48],[22,51,22,58],[23,4,23,6],[23,7,23,9],[23,10,23,15],[23,18,24,20],[23,21,24,26],[23,28,24,35],[22,21,22,26],[23,37,24,48],[22,4,22,15],[9,28,9,35],[9,37,9,48],[9,51,9,58],[10,4,10,6],[10,7,10,9],[10,10,10,15],[10,18,11,20],[10,21,11,26],[10,28,11,35],[10,37,11,48],[9,4,9,15],[9,18,9,20],[9,21,9,26],[10,51,11,58],[11,4,11,6],[11,7,11,9],[6,3,6,16],[6,24,6,49],[5,3,5,10],[5,24,5,49],[1,2,1,14],[3,3,3,16],[3,17,3,49]]}
[]
[null,null,"Asociaţi"]
[]
[null,null,null,"Nume si prenume asociat"]
[]
[null,null,null,"Data naşterii",null,null,null,null,null,null,null,null,null,null,null,null,null,null,null,null,null,null,null,null,"Cod numeric personal"]
[]
[]
[]
[null,null,null,null,"Act de identitate",null,null,null,null,null,null,null,null,null,null,null,null,null,"Seria",null,null,"Nr.",null,null,null,null,null,null,"Eliberat la data de",null,null,null,null,null,null,null,null,"de:",null,null,null,null,null,null,null,null,null,null,null,null,null,"Valabil până la:"]
[null,null,null,null,"B.I.",null,null,"C.I.",null,null,"Paşaport"]
[]
[]
[]
[]
[]
[null,null,null,"Nume si prenume asociat"]
[]
[null,null,null,"Data naşterii",null,null,null,null,null,null,null,null,null,null,null,null,null,null,null,null,null,null,null,null,"Cod numeric personal"]
[]
[]
[]
[null,null,null,null,"Act de identitate",null,null,null,null,null,null,null,null,null,null,null,null,null,"Seria",null,null,"Nr.",null,null,null,null,null,null,"Eliberat la data de",null,null,null,null,null,null,null,null,"de:",null,null,null,null,null,null,null,null,null,null,null,null,null,"Valabil până la:"]
[null,null,null,null,"B.I.",null,null,"C.I.",null,null,"Paşaport"]